Workbook

Sheet Calculations
B1: Input Last Name of Patient | I1: Adult Digoxin Dosing
B2: Input First Name of Patient | I2: Bayesian and Non-Bayesian Data Fitting of Steady State or Non Steady State Dosing and Serum Levels
B3: Input Unique Patient Identifier | I3: Using Standard One Compartment Pharmacokinetic Equations
B4: Input Age (Years) | F4: Vd Multiplier | G4: Clearance Multiplier | I4: Marshall Pierce Pharm.D.
B5: Select Height Units (Drop Down Box) | C5: Inches | D5: Drug & Disease State Interaction (Drop Down Box) | E5: None | F5: =VLOOKUP(E5,'Drop Down Boxes'!P2:R13,3,TRUE) -> 1 | G5: =VLOOKUP(E5,'Drop Down Boxes'!P2:R13,2,TRUE) -> 1
B6: Input Height | D6: =IF(C7>84,"Verify that correct height units are being used","") -> 
B7: Height Used (Inches) | C7: =IF(C5="Centimeters",C6/2.54,C6) -> 0 | D7: 0 | E7: Left Arm Amputation | F7: Right Arm Amputation | G7: Paralysis
B8: Select Weight Units (Drop Box Box) | C8: Kgs | E8: Not Applicable | F8: Not Applicable | G8: Not Applicable
B9: Input Weight | E9: Not Applicable | F9: Not Applicable | G9: Not Applicable
B10: Weight Used (kgs) | C10: =IF(C8="Lbs",C9/2.2,C9) -> 0 | D10: 0 | E10: Left Leg Amputation | F10: Right Leg Amputation | G10: Creatinine Multiplier
B11: Select Sex (Drop Down Box) | C11: Male | D11: Male | E11: Not Applicable | F11: Not Applicable | G11: 1
B12: Input Most Recent Actual Serum Creatinine (mg/dl) | E12: Not Applicable | F12: Not Applicable
B13: Input Previous Actual Serum Creatinine (mg/dl) | E13: Malnutrition | G13: Vd Multipliers | H13: Clearance Multipliers
B14: Time Between Serum Creatinines (hours) | E14: Not Applicable | G14: Quinidine 0.7 | H14: Amiodarone 0.5
B15: Systolic Dysfunction? (Drop Down Box) | C15: Yes | D15: Yes | E15: Not Applicable | G15: Hypothyroid 0.7 | H15: Canaglifozin 0.8
B16: Input Infusion Period (hours) | C16: 0.25 | D16: =IF(C16>3, "Verify that infusion period is correct","") ->  | G16: Hyperthyroid 1.3 | H16: Carvedilol 0.75
A17: Hide | B17: Lean Body Weight < 18 or 48 inches | C17: =IF(C7<22,C10,IF(OR(C4<18,C7<48),IF(C11="Male",(-59.6035+(5.2878*C7)-(0.123939*C7^2)+(0.00128936*C7^3))/2.2,(-77.55796+(6.93728*C7)-(0.171703*C7^2)+(0.001726*C7^3))/2.2))) -> 0 | H17: Dronedarone 0.5
A18: Hide | B18: Lean Body Weight Calculated | C18: =IF(OR(C4<18,C7<48),C17,IF(C11="Female", (C7-60)*2.3+45.5,(C7-60)*2.3+50)) -> 0 | H18: Ketoconazole/Itraconazole 0.5
B19: Calculated Lean Body Weight (kg) | C19: =IF(C18<=C10,C18,C10) -> 0 | H19: Dronedarone 0.5
A20: Hide | B20: Dosing Weight Aminoglycosides | C20: =IF(C19<C10,(C10-C19)*0.4+C19,C10) -> 0
B21: Calculated Dosing Weight (kg) | C21: =IF(C15="Vancomycin",C10,C20) -> 0 | H21: Ketoconazole/Itra 0.5
B22: Calculated Vd (Liters) | C22: =((4.5+(0.028*C24)*1.73/C23)*C19)*F5 ->  | D22: =IF(OR(C12<>D12,C13<>D13,C14<>D14,E9<>E8,F9<>F8,G9<>G8,E12<>E11,F12<>F11,E15<>E14,C4<>D4,C7<>D7,C10<>D10,C11<>D11,C15<>D15),"Remember to press the Calculated Creatinine Clearance Button","") ->  | H22: Propafenone 0.75
B23: Body Surface Area Calculated Meters2 | C23: =(C10^0.425)*((C7*2.54)^0.725)*71.84/10000 -> 0 | H23: Quinidine 0.5
B24: Calculated Creatinine Clearance (ml/min) | C24: =CreatinineClearanceCalculation!E19 -> 0 | D24: Based on Levels | E24: Based on Levels | H24: Ranolazine 0.67
B25: Calculated T1/2 (Hours) for Creatinine | C25: =IF(LEN(D22)<>0,"",CreatinineClearanceCalculation!E20) ->  | D25: Solver Based Calulations | E25: Volume of Distribution (Liters) | H25: Verapamil 0.75
B26: Calc. Eliminaton Rate Constant (hr-1) Drug | C26: =IF(C15="Yes",((0.33*C19+0.9*C24)*60/1000)*G5/C22,((0.8*C19+C24)*60/1000*G5/C22)) ->  | D26: =C26 ->  | E26: =C22 ->  | H26: Hypothyroid 0.7
B27: Calculated Half-Life (Hours) for Drug | C27: =0.693/C26 ->  | D27: =0.693/D26 ->  | H27: Hyperthyroid 1.3
A28: Hide | B28: Input Desied Peak From Loading Dose Level (mcg/L) | C28: 1
A29: Hide | B29: Calculated IV Loading Dose (mcg) | C29: =C28*C22 ->  | G29: Dosage Form | H29: Fraction Absorbed | I29: Salt
B30: Input Maintance Dosage Form | C30: Injection | G30: Capsule | H30: 1 | I30: 1
A31: Hide | B31: Bioavailability of Dosage Form | C31: =VLOOKUP(C30,'Drop Down Boxes'!S2:T5,2,TRUE) -> 1 | D31: =IF($C15="Gentamicin/Tobramycin Traditional", (LN(6/1)/D26)+0.5, IF((((LN(20/0.3))/D26)+0.5)<24,24,IF((((LN(20/0.3))/D26)+0.5)<36,36,IF((((LN(20/0.3))/D26)+0.5)<48,48,"")))) ->  | G31: Elixir | H31: 0.8 | I31: 1
A32: Hide | B32: Input Desired Average Level (mcg/L) | C32: 1 | D32: =IF($C15="Amikacin Traditional", LN(30/2)/D26+0.5,IF((((LN(60/0.9))/D26)+0.5)<24,24,IF((((LN(60/0.9))/D26)+0.5)<36,36,IF((((LN(60/0.9))/D26)+0.5)<48,48,"")))) ->  | G32: Injection | H32: 1 | I32: 1
D33: =IF(LEN($D22)<>0,"",IF($C15="Vancomycin",(((LN(30/15))/D26)+2),IF(OR($C15="Amikacin Traditional",$C15="Amikacin Pulse"),D32,D31))) ->  | G33: Tablets | H33: 0.7 | I33: 1
B34: Input Dosage Interval (Days) | D34: =C34 -> 0
B35: Calculated Daily Maintenance Dose (mcg) | C35: =C32*C34*24*(C26*C22)/C31 ->  | D35: =C32*C34*24*D26*E26/C31 -> 
B36: Input Rounded MaintenanceDose (mcg) | D36: =C36 -> 0 | I36: =IF(ISERROR(H36),"",IF(H36>=18,"A lower dose, 10-17.5 mg/kg, is recommeneded","")) -> 
B37: Calculated Peak (mcg/L) | C37: =IF(LEN(D22)<>0,"",C36*C31*(1-EXP(-C26*$C16))/($C22*C26*$C16*(1-EXP(-C26*C34*24)))) ->  | D37: =D36*C31*(1-EXP(-D26*$C16))/($E26*D26*$C16*(1-EXP(-D26*D34*24))) -> 
B38: Calculated Trough (mcg/L) | C38: =IF(LEN(D22)<>0,"",C37*EXP(-C26*(C34*24-$C16))) ->  | D38: =D37*EXP(-D26*(D34*24-$C16)) ->  | E38: Dose 1 after starting level | H38: Dose 2 after starting level | K38: Dose 3 after starting level | N38: Dose 4 after starting level | Q38: Dose 5 after starting level | T38: Dose 6 after starting level | W38: Dose 7 after starting level
B39: Calcualted Average (mcg/L) | C39: =IF(LEN(D22)<>0,"",C31*C36/(C26*C22*C34*24)) ->  | D39: =C31*D36/(D26*E26*D34*24) ->  | E39: Injection | G39: Dosage Form | H39: Injection | J39: Dosage Form | K39: Injection | M39: Dosage Form | N39: Injection | P39: Dosage Form | Q39: Injection | S39: Dosage Form | T39: Injection | V39: Dosage Form | W39: Injection
E40: =VLOOKUP(E39,'Drop Down Boxes'!$S2:$T5,2) -> 1 | G40: Biavailability | H40: =VLOOKUP(H39,'Drop Down Boxes'!$S2:$T5,2) -> 1 | J40: Biavailability | K40: =VLOOKUP(K39,'Drop Down Boxes'!$S2:$T5,2) -> 1 | M40: Biavailability | N40: =VLOOKUP(N39,'Drop Down Boxes'!$S2:$T5,2) -> 1 | P40: Biavailability | Q40: =VLOOKUP(Q39,'Drop Down Boxes'!$S2:$T5,2) -> 1 | S40: Biavailability | T40: =VLOOKUP(T39,'Drop Down Boxes'!$S2:$T5,2) -> 1 | V40: Biavailability | W40: =VLOOKUP(W39,'Drop Down Boxes'!$S2:$T5,2) -> 1
D41: Dose (mcg) | G41: Dose (mcg) | J41: Dose (mg) | M41: Dose (mcg) | P41: Dose (mcg) | S41: Dose (mcg) | V41: Dose (mcg)
D42: Dose Date &Time | G42: Dose Date &Time | J42: Dose Date &Time | M42: Dose Date &Time | P42: Dose Date &Time | S42: Dose Date &Time | V42: Dose Date &Time
B43: Current Date | C43: 2022-01-31T17:20:47
B44: Date Therapy Initiated (Month/Day/Year)
C46: Starting Level (mcg/L) Before Dose 1 | E46: Serum Levels (mcg/L) | H46: Serum Levels (mcg/L) | K46: Serum Levels (mcg/L) | N46: Serum Levels (mcg/L) | Q46: Serum Levels (mcg/L) | T46: Serum Levels (mcg/L) | W46: Serum Levels (mcg/L)
C47: Starting Level Date &Time | E47: Serum Level Date &Time | H47: Serum Level Date &Time | K47: Serum Level Date &Time | N47: Serum Level Date &Time | Q47: Serum Level Date &Time | T47: Serum Level Date &Time | W47: Serum Level Date &Time
E49: Trough Before Dose 1 | H49: Trough Before Dose 2 | K49: Trough Before Dose 3 | N49: Trough Before Dose 4 | Q49: Trough Before Dose 5
D50: Expected Levels (mcg/L) | E50: =D46*EXP(-$D58*(E42-$D47)*24) ->  | F50: =$D46*EXP(-$F58*(F47-$D47)*24)+($E41*E40*(1-EXP(-$F58*$C16))*(EXP(-$F58*(((F47-$E42)*24)-$C16)))/($E26*$C16*$F58)) ->  | G50: =$D46*EXP(-$F58*(G47-$D47)*24)+($E41*E40*(1-EXP(-$F58*$C16))*(EXP(-$F58*(((G47-$E42)*24)-$C16)))/($E26*$C16*$F58)) ->  | H50: =$D46*EXP(-$F58*(H42-$D47)*24)+($E41*E40*(1-EXP(-$F58*$C16))*(EXP(-$F58*(((H42-$E42)*24)-$C16)))/($E26*$C16*$F58)) ->  | I50: =$H50*EXP(-$I58*(I47-$H42)*24) + ($H41*H40*(EXP(-$I58*(((I47-$H42)*24)-$C16)))*(1-EXP(-$I58*$C16))/($E26*$I58*$C16)) ->  | J50: =$H50*EXP(-$I58*(J47-$H42)*24) + ($H41*H40*(EXP(-$I58*(((J47-$H42)*24)-$C16)))*(1-EXP(-$I58*$C16))/($E26*$I58*$C16)) ->  | K50: =$H50*EXP(-$I58*(K42-$H42)*24) + ($H41*H40*(EXP(-$I58*(((K42-$H42)*24)-$C16)))*(1-EXP(-$I58*$C16))/($E26*$I58*$C16)) ->  | L50: =$K50*EXP(-$L58*(L47-$K42)*24) + ($K41*K40*(EXP(-$L58*(((L47-$K42)*24)-$C16)))*(1-EXP(-$L58*$C16))/($E26*$L58*$C16)) ->  | M50: =$K50*EXP(-$L58*(M47-$K42)*24) + ($K41*K40*(EXP(-$L58*(((M47-$K42)*24)-$C16)))*(1-EXP(-$L58*$C16))/($E26*$L58*$C16)) ->  | N50: =$K50*EXP(-$L58*(N42-$K42)*24) + ($K41*K40*(EXP(-$L58*(((N42-$K42)*24)-$C16)))*(1-EXP(-$L58*$C16))/($E26*$L58*$C16)) ->  | O50: =$N50*EXP(-$O58*(O47-$N42)*24) + ($N41*N40*(EXP(-$O58*(((O47-$N42)*24)-$C16)))*(1-EXP(-$O58*$C16))/($E26*$O58*$C16)) ->  | P50: =$N50*EXP(-$O58*(P47-$N42)*24) + ($N41*N40*(EXP(-$O58*(((P47-$N42)*24)-$C16)))*(1-EXP(-$O58*$C16))/($E26*$O58*$C16)) ->  | Q50: =$N50*EXP(-$O58*(Q42-$N42)*24) + ($N41*N40*(EXP(-$O58*(((Q42-$N42)*24)-$C16)))*(1-EXP(-$O58*$C16))/($E26*$O58*$C16)) ->  | R50: =$Q50*EXP(-$R58*(R47-$Q42)*24) + ($Q41*Q40*(EXP(-$R58*(((R47-$Q42)*24)-$C16)))*(1-EXP(-$R58*$C16))/($E26*$R58*$C16)) ->  | S50: =$Q50*EXP(-$R58*(S47-$Q42)*24) + ($Q41*Q40*(EXP(-$R58*(((S47-$Q42)*24)-$C16)))*(1-EXP(-$R58*$C16))/($E26*$R58*$C16)) ->  | T50: =$Q50*EXP(-$R58*(T42-$Q42)*24) + ($Q41*Q40*(EXP(-$R58*(((T42-$Q42)*24)-$C16)))*(1-EXP(-$R58*$C16))/($E26*$R58*$C16)) ->  | U50: =$T50*EXP(-$U58*(U47-$T42)*24) + ($T41*T40*(EXP(-$U58*(((U47-$T42)*24)-$C16)))*(1-EXP(-$U58*$C16))/($E26*$U58*$C16)) ->  | V50: =$T50*EXP(-$U58*(V47-$T42)*24) + ($T41*T40*(EXP(-$U58*(((V47-$T42)*24)-$C16)))*(1-EXP(-$U58*$C16))/($E26*$U58*$C16)) ->  | W50: =$T50*EXP(-$U58*(W42-$T42)*24) + ($T41*T40*(EXP(-$U58*(((W42-$T42)*24)-$C16)))*(1-EXP(-$U58*$C16))/($E26*$U58*$C16)) ->  | X50: =$W50*EXP(-$X58*(X47-$W42)*24) + ($W41*W40*(EXP(-$X58*(((X47-$W42)*24)-$C16)))*(1-EXP(-$X58*$C16))/($E26*$X58*$C16)) ->  | Y50: =$W50*EXP(-$X58*(Y47-$W42)*24) + ($W41*W40*(EXP(-$X58*(((Y47-$W42)*24)-$C16)))*(1-EXP(-$X58*$C16))/($E26*$X58*$C16)) -> 
E52: Square of Errors | F52: =IF(ISNUMBER(F50),(F50-F46)^2,"") ->  | G52: =IF(ISNUMBER(G50),(G50-G46)^2,"") ->  | I52: =IF(ISNUMBER(I50),(I50-I46)^2,"") ->  | J52: =IF(ISNUMBER(J50),(J50-J46)^2,"") ->  | L52: =IF(ISNUMBER(L50),(L50-L46)^2,"") ->  | M52: =IF(ISNUMBER(M50),(M50-M46)^2,"") ->  | O52: =IF(ISNUMBER(O50),(O50-O46)^2,"") ->  | P52: =IF(ISNUMBER(P50),(P50-P46)^2,"") ->  | R52: =IF(ISNUMBER(R50),(R50-R46)^2,"") ->  | S52: =IF(ISNUMBER(S50),(S50-S46)^2,"") ->  | U52: =IF(ISNUMBER(U50),(U50-U46)^2,"") ->  | V52: =IF(ISNUMBER(V50),(V50-V46)^2,"") ->  | X52: =IF(ISNUMBER(X50),(X50-X46)^2,"") ->  | Y52: =IF(ISNUMBER(Y50),(Y50-Y46)^2,"") -> 
E53: Sum of Square of Errors | F53: =SUM(F52:Y52) -> 0
C55: Input Serum Ceatinine (mg/dL) | E55: Input Serum Ceatinine | H55: Input Serum Ceatinine | K55: Input Serum Ceatinine | N55: Input Serum Ceatinine | Q55: Input Serum Ceatinine | T55: Input Serum Ceatinine | W55: Input Serum Ceatinine
C56: Creatinine Clearance (ml/min) | D56: =IF(ISBLANK(D55),$C24,IF($C11="Male",(140-$C4)*$C19/(72*D55*$G11),(140-$C4)*$C19*0.85/(72*D55*$G11))) -> 0 | F56: =IF(ISBLANK(F55),$C24,IF($C11="Male",(140-$C4)*$C19/(72*F55*$G11),(140-$C4)*$C19*0.85/(72*F55*$G11))) -> 0 | I56: =IF(ISBLANK(I55),$C24,IF($C11="Male",(140-$C4)*$C19/(72*I55*$G11),(140-$C4)*$C19*0.85/(72*I55*$G11))) -> 0 | L56: =IF(ISBLANK(L55),$C24,IF($C11="Male",(140-$C4)*$C19/(72*L55*$G11),(140-$C4)*$C19*0.85/(72*L55*$G11))) -> 0 | O56: =IF(ISBLANK(O55),$C24,IF($C11="Male",(140-$C4)*$C19/(72*O55*$G11),(140-$C4)*$C19*0.85/(72*O55*$G11))) -> 0 | R56: =IF(ISBLANK(R55),$C24,IF($C11="Male",(140-$C4)*$C19/(72*R55*$G11),(140-$C4)*$C19*0.85/(72*R55*$G11))) -> 0 | U56: =IF(ISBLANK(U55),$C24,IF($C11="Male",(140-$C4)*$C19/(72*U55*$G11),(140-$C4)*$C19*0.85/(72*U55*$G11))) -> 0 | X56: =IF(ISBLANK(X55),$C24,IF($C11="Male",(140-$C4)*$C19/(72*X55*$G11),(140-$C4)*$C19*0.85/(72*X55*$G11))) -> 0
B57: hide | C57: Intercept Constant (van & Amino) | D57: =IF(C15="Vancomycin", 0.005216005,0.014) -> 0.014
B58: hide | C58: K (1/hour) | D58: =(($D26-$D57)*(D56/$C24))+$D57 ->  | F58: =(($D26-$D57)*(F56/$C24))+$D57 ->  | I58: =(($D26-$D57)*(I56/$C24))+$D57 ->  | L58: =(($D26-$D57)*(L56/$C24))+$D57 ->  | O58: =(($D26-$D57)*(O56/$C24))+$D57 ->  | R58: =(($D26-$D57)*(R56/$C24))+$D57 ->  | U58: =(($D26-$D57)*(U56/$C24))+$D57 ->  | X58: =(($D26-$D57)*(X56/$C24))+$D57 -> 
B59: Marshall Pierce PharmD | E59: Square of Errors Bayesian | F59: =IF(ISNUMBER(F50),(F46-F50)^2/(0.1*F46)^2,"") ->  | G59: =IF(ISNUMBER(G50),(G46-G50)^2/(0.1*G46)^2,"") ->  | I59: =IF(ISNUMBER(I50),(I46-I50)^2/(0.1*I46)^2,"") ->  | J59: =IF(ISNUMBER(J50),(J46-J50)^2/(0.1*J46)^2,"") -> 
B60: Copyright. No Warranties Are Expressed or Implied. Educational Use | E60: Sum of Square of Errors Bayesian | F60: =((C26-D26)^2/(C26*0.3)^2)+((C22-E26)^2/(C22*0.3)^2)+SUM(F59:Y59) -> 
B61: hide | E61: SSE Vd & Ke original | F61: =((C26-D26)^2/(C26*0.1)^2)+((C22-E26)^2/(C22*0.1)^2) -> 
B62: hide | E62: SSE Clearance | F62: =(C26*C22-D26*C22)^2/(C26*C22*0.1)^2 -> 
B63: hide | E63: SSE Vd | F63: =(C22-E26)^2/(C22*0.1)^2 -> 
B65: Initial Level | D65: =D46 -> 0 | E65: =$D65*EXP(-$F58*(E42-$D47)*24) ->  | F65: =$D65*EXP(-$F58*(F47-$D47)*24) ->  | G65: =$D65*EXP(-$F58*(G47-$D47)*24) ->  | H65: =$D65*EXP(-$F58*(H42-$D47)*24) ->  | I65: =$D65*EXP(-$I58*(I47-$D47)*24) ->  | J65: =$D65*EXP(-$I58*(J47-$D47)*24) ->  | K65: =$D65*EXP(-$I58*(K42-$D47)*24) ->  | L65: =$D65*EXP(-$L58*(L47-$D47)*24) ->  | M65: =$D65*EXP(-$L58*(M47-$D47)*24) ->  | N65: =$D65*EXP(-$L58*(N42-$D47)*24) ->  | O65: =$D65*EXP(-$O58*(O47-$D47)*24) ->  | P65: =$D65*EXP(-$O58*(P47-$D47)*24) ->  | Q65: =$D65*EXP(-$O58*(Q42-$D47)*24) ->  | R65: =$D65*EXP(-$R58*(R47-$D47)*24) ->  | S65: =$D65*EXP(-$R58*(S47-$D47)*24) ->  | T65: =$D65*EXP(-$R58*(T42-$D47)*24) ->  | U65: =$D65*EXP(-$U58*(U47-$D47)*24) ->  | V65: =$D65*EXP(-$U58*(V47-$D47)*24) ->  | W65: =$D65*EXP(-$U58*(W42-$D47)*24) ->  | X65: =$D65*EXP(-$X58*(X47-$D47)*24) ->  | Y65: =$D65*EXP(-$X58*(Y47-$D47)*24) -> 
B66: Dose1 | F66: =$E41*(1-EXP(-$F58*$C$16))*EXP(-$F58*(((F47-$E42)*24)-$C16))/($E26*$F58*$C16) ->  | G66: =$E41*(1-EXP(-$F58*$C$16))*EXP(-$F58*(((G47-$E42)*24)-$C$16))/($E26*$F58*$C$16) ->  | H66: =$E41*(1-EXP(-$F58*$C$16))*EXP(-$F58*(((H42-$E42)*24)-$C$16))/($E26*$F58*$C$16) ->  | I66: =$E41*(1-EXP(-$I58*$C16))*EXP(-$I58*(((I47-$E42)*24)-$C16))/($E26*$I58*$C$16) ->  | J66: =$E41*(1-EXP(-$I58*$C16))*EXP(-$I58*(((J47-$E42)*24)-$C16))/($E26*$I58*$C$16) ->  | K66: =$E41*(1-EXP(-$I58*$C16))*EXP(-$I58*(((K42-$E42)*24)-$C16))/($E26*$I58*$C$16) ->  | L66: =$E41*(1-EXP(-$L58*$C16))*EXP(-$L58*(((L47-$E42)*24)-$C16))/($E26*$L58*$C16) ->  | M66: =$E41*(1-EXP(-$L58*$C16))*EXP(-$L58*(((M47-$E42)*24)-$C16))/($E26*$L58*$C16) ->  | N66: =$E41*(1-EXP(-$L58*$C16))*EXP(-$L58*(((N42-$E42)*24)-$C16))/($E26*$L58*$C16) ->  | O66: =$E41*(1-EXP(-$O58*$C16))*EXP(-$O58*(((O47-$E42)*24)-$C16))/($E26*$O58*$C16) ->  | P66: =$E41*(1-EXP(-$O58*$C16))*EXP(-$O58*(((P47-$E42)*24)-$C16))/($E26*$O58*$C16) ->  | Q66: =$E41*(1-EXP(-$O58*$C16))*EXP(-$O58*(((Q42-$E42)*24)-$C16))/($E26*$O58*$C16) ->  | R66: =$E41*(1-EXP(-$R58*$C16))*EXP(-$R58*(((R47-$E42)*24)-$C16))/($E26*$R58*$C16) ->  | S66: =$E41*(1-EXP(-$R58*$C16))*EXP(-$R58*(((S47-$E42)*24)-$C16))/($E26*$R58*$C16) ->  | T66: =$E41*(1-EXP(-$R58*$C16))*EXP(-$R58*(((T42-$E42)*24)-$C16))/($E26*$R58*$C16) ->  | U66: =$E41*(1-EXP(-$U58*$C16))*EXP(-$U58*(((U47-$E42)*24)-$C16))/($E26*$U58*$C16) ->  | V66: =$E41*(1-EXP(-$U58*$C16))*EXP(-$U58*(((V47-$E42)*24)-$C16))/($E26*$U58*$C16) ->  | W66: =$E41*(1-EXP(-$U58*$C16))*EXP(-$U58*(((W42-$E42)*24)-$C16))/($E26*$U58*$C16) ->  | X66: =$E41*(1-EXP(-$X58*$C16))*EXP(-$X58*(((X47-$E42)*24)-$C16))/($E26*$X58*$C16) ->  | Y66: =$E41*(1-EXP(-$X58*$C16))*EXP(-$X58*(((Y47-$E42)*24)-$C16))/($E26*$X58*$C16) -> 
B67: Dose2 | H67: start | I67: =$E42*(1-EXP(-$I59*$C$16))*EXP(-$I59*(((I47-$H42)*24)-$C$16))/($E$26*$I59*$C$16) ->  | J67: =$E42*(1-EXP(-$I59*$C$16))*EXP(-$I59*(((J47-$H42)*24)-$C$16))/($E$26*$I59*$C$16) ->  | K67: =$E42*(1-EXP(-$F59*$C17))*EXP(-$F59*(((K43-$E43)*24)-$C17))/($E27*$D27*$C17) -> 
B68: Dose3
B69: Dose4
B70: Dose5
B71: Dose6
B72: Dose7
B73: Dose8
B74: Dose9
B75: Dose10
B76: Dose11
B77: Dose12
B78: Dose13
B79: Dose14
B80: Dose15
B81: Dose16
B82: Dose17
B83: Dose18
B84: Dose19
B85: Dose20
B86: Dose21
B87: Dose22
B88: Dose23
B89: Dose24
B90: Dose25
B91: Dose26
B92: Dose27
B93: Dose28
B94: Dose29
B95: Dose30
B97: Instructions For Use
B98: 1. Enter the data required in the blue colored cells in column C, (C1-C16).
B99: 2. Select the patients treatment condition in cell E5.
B100: 3. Select the values in cells E8 through G8, E11 through F11, and E14 if the patient has amputation(s), paralysis, or malnutrition.
B101: 4. Press the "Calculate Creatinine Clearnance or Dose" button. This will calculate the patient's creatinine clearance and suggested dose and frequency.
B102: 5. Enter a rounded dosage interval and rounded dose in cells C34 and C36 respectively.
B103: 6. Population based parameters (elimination rate constant and volume of distribution) are used to calculate the peak and trough in C37 and C38 respectively.
B104: 7. Change the values in C34 and C36 to obtain your desired predicted peak and trough in cells C37 and C38.
B106: Population Based Equations Using Standard One Compartment Pharmacokinetic Equations
B107: Digoxin
B108: Volume of Distribution (liters) = (4.5 + 0.028 *Clcr ml/min/1.73 m2)* Lean Body Weight * Multiplier, Paulson and Welling Equation
B109: Clearance (L/hour) Non CHF = (0.8 * LBW + Creatinine clearance (ml/min)) *60/1000 * Multiplier, Sheiner Equation
B110: Clearance (L/hour) CHF = (0.33*LBW +0.9 Creatinine clearance (ml/min) *60/1000 * Multiplier, Sheiner Equation
B111: Elimination Rate Constant (1/hours) = Clearance (L/hr) / Vd(L)
B112: Ideal body weight (IBW(kg)) Adults
B113: Males(kg) = 50(kg) + 2.3(kg) * (height in inches - 60)
B114: Females(kg) = 45.5(kg) + 2.3(kg) * (height in inches - 60)
B115: Lean Body Weight for Children or height < 48 inches (Peck Formula)
B116: Female < 18 years = -77.55796 + (6.93728 * height in inches) -(0.171703 * Height2) + (0.001726* Height3)
B117: Male < 18 years = -59.6035 + (5.2878 * Height) - (0.123939 * Height2) + 0.00128936 * Height3)
B118: If height < 22 inches, lean weight = total weight
B119: Adjusted body weight, aminoglycosides only, if actual weight > IBW.
B120: Adjusted Body Weight(kg) = LBW(kg) + 0.4 * (Actual Weight(kg) – IBW(kg))
B121: Creatinine Clearance Equations
B122: Adults Cockcroft Gault Equation
B123: Males(ml/min) = (140-age) * ( Use Ideal Body Weight(kg) or actual weight if less than IBW(kg)) / (Serum Creatinine *72)
B124: Females(ml/mn): above x 0.85
B125: Pediatic Schartz Equation
B126: ClCr(ml/min/1.73 m2) = Factor* HeightCentimeters / Serum Creatinine
B127: Factor: 0.45 < 1 year, 0.55 1-12 years, > 12 years 0.55 female, > 12 years males 0.7
B128: Amputation and Paralysis Serum Creatiine Multiplication Factors
B129: Entire Leg Amputation (1.2269), AKA (1.1764), BKA (1.0638), Entire Arm Amputation (1.0695), AEA (1.0526), BEA (1.0309), Functional Palegia (1.4), Paraplegia (1.4), Quadraplegia(1.6)
B130: Minimal Serum Creatinine: 0.5 mg/dL in patients with functional, para or quadraplegia, or malnutrition; 0.7 in other adults.
B131: Data Fitting: The program employees non steady state one compartment equations and uses the method of superposition to determine the expected level(s) from the input dosing history,
B132: starting serum level, and and estimated pharmacokinetic parameters.
B133: CpT = Cp0e(-K(T-to)) + [D1(1-e(-KT’))*e(-K(T-Td1-T’))/(VKT’)] + [D2(1-e(-KT’))*e(-K(T-Td2-T’))/(VKT’)]…….
B134: The expected levels, displayed in the data fitting section, are calculated using the population elimination rate constant (C26) and volume of distribtution (C22) initially.
B135: Once the data (dosing and serum levels) is fit the patient specific values of elimination rate constant and volume of distribution, D26 and E26, are used.
B137: Objective Function to Minimize
B138: Sum of the Square of Errors = (Predicted Level1 – Actual Level1)2 + (Predicted Level2 – Actual Level2)2 for all input levels
B140: Analyzing steady state levels using a trough drawn after a know steady state dose (this is our usual practice)
B141: 8. Steps 1-7 must be completed, enter the current frequency and dose in C34 and C36.
B142: 9. Enter the date therapy was started in cell C44.
B143: 10. Enter the steady state trough in cell G46 and the date and time of the trough in G47.
B144: 11. Enter the date and time of the dose which was given before the trough in E42.
B145: 12. Press the "Assume Steady State: Trough drawn after dose 1". This will copy the entered trough to cell D46, place the calculated time of the predose trough in cell D47, and the dose to E41.
B146: This is for your convience, if you choose to you can enter the data manually without pressing the "Assume Steady State" button.
B147: By placing the same trough around a single dose you are creating steady state conditions. This is the definition of steady state, levels are unchange dose to dose.
B148: 13. Press "Fit Data (Elimination Rate Constant Optimization)" button. The program will determine the elimination rate constant that miniminzes the difference between the actual and predicted level.
B149: 14. The calculated patient specific elimination rate constant is displayed in cell D26 after data fitting.
B150: 15. The predicted state state levels using the patient specific elimination rate constant are displayed in cells D37 and D38 respectively.
B151: 16. You may adjust the dosage frequency and dose in D34 and D36 to obtain your desired levels.
B153: Steady State Levels with the trough drawn post dose past the time the next dose was due as next dose was held, the dose was given late, or a random level was ordered.
B154: Trough at time of Dose1 displayed in E50 = Trough PredoseD46*Exp(-K*(Time of Dose1 E42- Time of Predose Trough D47)*24)
B155: The trough in D46 will show a time in D47 that is after the time of the dose1 in E42, but the equation above back extrapolates the calculated trough displayed in E50 to the time of Dose 1.
B156: The programs calculations are correct though the displayed values in D46 and D47 look incorrect. The value in E50 is the value used in the further calculations.
B158: Analyzing steady state levels using a trough drawn before a known steady state dose. This will be rarely use, but is included for flexible.
B159: 8. Steps 1-7 must be completed, enter the current frequency and dose in C34 and C36.
B160: 9. Enter the date therapy was started in cell C44.
B161: 10. Enter the steady state trough in cell D46 and the date and time of the trough in D47.
B162: 11. Enter the date and time of the dose which was given in E42.
B163: 12. Press the "Assume Steady State: Trough drawn before dose 1". This will copy the entered trough to cell G46, place the calculated time of the post dose trough in cell G47, and the dose to E41.
B164: This is for your convience, if you choose to you can enter the data manually without pressing the "Assume Steady State" button.
B165: By placing the same trough around a single dose you are creating steady state conditions. This is the definition of steady state, levels are unchanging dose to dose.
B166: 13. Press "Fit Data (Elimination Rate Constant Optimization)" button. The program will determine the elimination rate constant that miniminzes the difference between the actual and predicted level.
B167: 14.The calculated patient specific elimination rate constant is displayed in cell D26 after data fitting.
B168: 15. The predicted state state levels using the patient specific elimination rate constant are displayed in cells D37 and D38 respectively.
B169: 16. You may adjust the dosage frequency and dose in D34 and D36 to obtain your desired levels.
B171: Analyzing steady state levels using a trough drawn before a known steady state dose and a peak after the same dose (Traditional Dosing for Aminoglycosides)
B172: 8. Steps 1-7 must be completed, enter the current frequency and dose in C34 and C36.
B173: 9. Enter the date therapy was started in cell C44.
B174: 10. Enter the steady state trough in cell D46 and the date and time of the trough in D47.
B175: 11. Enter the steady state peak in cell F46 and time of the peak in F47.
B176: 12. Enter the date and time of the dose which was given in E42.
B177: 13. Press the "Assume Steady State: Trough drawn before dose 1". This will copy the entered trough to cell G46, place the calculated time of the post dose trough in cell G47, and the dose to E41.
B178: This is for your convience, if you choose to you can enter the data manually without pressing the "Assume Steady State" button.
B179: By placing the same trough around a single dose you are creating steady state conditions. This is the definition of steady state.
B180: 14. Press "Fit Data (Elimination Rate Constant & Vd Optimization)" button. The program will determine the elimination rate constant and volume of distribution that miniminzes the difference
B181: between the actual and predicted levels.
B182: 15. The calculated patient specific elimination rate constant is displayed in cell D26 and volume of distribution in cell E26 after data fitting.
B183: 16. The predicted state state levels using the patient specific K and Vd are displayed in cells D37 and D38 respectively.
B184: 17. You may adjust the dosage frequency and dose in D34 and D36 to obtain your desired levels.
B186: Analyzing Non Steady State Levels
B187: 8. Steps 1-7 must be completed, enter the current frequency and dose in C34 and C36.
B188: 9. Enter the date therapy was started in cell C44.
B189: 10. Enter a starting level and time of the level in cells D46 and D47 respectively. This level may be 0 if no drug is on board or any known level before the doses you wish to analyze.
B190: 11. Enter all doses and the dates and times given from the time of the starting level through the last dose administered before the last level to be analyzed in chronological order,
B191: oldest to most recent left to right. The doses are numbered 1-5, chronological after the starting level.
B192: 12. Enter all levels and the times drawn to be analyzed in chronlogical order, oldest to most recent left to right.
B193: 13. Press the appropriate data fitting button, "Fit Data (Elimination Rate Constant Optimization)" if only troughs have been drawn, and
B194: "Fit Data (Elimination Rate Constant & Vd Optimization) if a peak(s) and trough(s) have been drawn.
B195: 14. The calculated patient specific elimination rate constant is displayed in cell D26 and volume of distribution in cell E26 after data fitting.
B196: 15. The predicted state state levels using the patient specific K and Vd are displayed in cells D37 and D38 respectively.
B197: 16. You may adjust the dosage frequency and dose in D34 and D36 to obtain your desired levels.
B200: When to assume levels are Non Steady State Levels
B201: 1. If you are ordering levels before 5 half lives of have passed from the start of therapy.
B202: 2. If you order levels after the 1st maintenance dose with or with out a loading dose.
B203: 3. The patients doses or dosage intervals are not consistent.
B205: Note: the predicted levels for input dosage regimens in column C (population) and D (patient specific) are independent from one another after data fitting.
B207: Creatinine Clearance Calculation
B208: How is creatinine clearance calculated when the serum creatinines is changing?
B209: Most creatinine clearance equations assume stable renal function.
B210: Creatinine clearance individualized (Clcr) Cockcroft Gault equation:
B211: Males(ml/min) = (140-age) * ( Use Ideal Body Weight(kg) or actual weight if less than IBW(kg)) / (Serum Creatinine *72)
B212: Females(ml/mn): above x 0.85
B213: In the simplified form: Creatinine Clearance = Creatinine rate of production / Serum Creatinine
B214: Rate of production is constant for a patient and is determined by age, height, weight and sex. The rate of production is built
B215: into the Cockcroft Gault equation and other creatinine clearanace equations. When renal function has changed the following equation may be used to
B216: calculate creatinine clearance before steady state serum creatinine levels are achieved. This is the most accurate method of
B217: numerous published equations. An iterative method is used to determine clearnace as there is no direct solution to the equation.
... 30 more rows

Sheet Drop Down Boxes (hidden)
B1: Systolic Dysfunction | C1: Drug | D1: Height Units | E1: Weight Units | F1: Sex | G1: Unit | H1: Diagnosis | I1: Leg | J1: Arm | K1: Paralasis | L1: Malnutrition | M1: Dosage Form | N1: Fraction | O1: Salt | P1: Drug Interaction Clearnarance Multiplier | Q1: Cl | R1: Vd | S1: Dosage Form | T1: Fraction | U1: Salt
B2: Yes | C2: Vancomycin | D2: Inches | E2: Kgs | F2: Female | G2: Critical Care | H2: Abcess | I2: Not Applicable | J2: Not Applicable | K2: Not Applicable | L2: Not Applicable | M2: Capsule | N2: 1 | O2: 1 | P2: Amiodarone | Q2: 0.5 | R2: 1 | S2: Capsule | T2: 1 | U2: 1
B3: No | C3: Amikacin Pulse | D3: Centimeters | E3: Lbs | F3: Male | G3: Orthopedics | H3: Bacteremia | I3: AKA | J3: AEA | K3: Functional | L3: Yes | M3: Elixir | N3: 0.8 | O3: 1 | P3: Canaglifozin | Q3: 0.8 | R3: 1 | S3: Elixir | T3: 0.8 | U3: 1
C4: Gentamicin/Tobramycin Pulse | G4: Oncology | H4: Bronchitis | I4: BKA | J4: BEA | K4: Paraplegia | M4: Injection | N4: 1 | O4: 1 | P4: Carvedilol | Q4: 0.75 | R4: 1 | S4: Injection | T4: 1 | U4: 1
C5: Amikacin Traditional | G5: Renal | H5: Brain Abcess | I5: Entire Leg Amputation | J5: Entire Arm Amputation | K5: Quadraplegia | M5: Tablets | N5: 0.7 | O5: 1 | P5: Dronedarone | Q5: 0.5 | R5: 1 | S5: Tablets | T5: 0.7 | U5: 1
C6: Gentamicin/Tobramycin Traditional | H6: CV Implanted Device infection | P6: Hyperthyroidism | Q6: 1.3 | R6: 1.3
H7: Cellulitis | P7: Hypothyroidism | Q7: 0.7 | R7: 0.7
H8: Central Line Infection | P8: Ketoconazole/Itraconazole | Q8: 0.5 | R8: 1
H9: Decubitis Ulcer | P9: None | Q9: 1 | R9: 1
H10: Diabetic Foot | P10: Propafenone | Q10: 0.75 | R10: 1
H11: Discitis | P11: Quinidine | Q11: 0.5 | R11: 0.7
H12: Empyema | P12: Ranolazine | Q12: 0.67 | R12: 1
H13: Endocarditis | P13: Verapamil | Q13: 0.75 | R13: 1
H14: Fever of Unknown Origin
H15: Gangrene | P15: Volume of Distribution Multiplier
H16: Gastroenteristis | P16: Hypothyroidism | Q16: 0.7 | R16: 0.7
H17: Intra-abdominal | P17: Hyperthyroidism | Q17: 1.3 | R17: 1.3
H18: Mediastinitis | P18: Quinidine | Q18: 0.7
H19: Meningitis
H20: Necrotizing Fascitis
H21: Neutropenia
H22: Osteomyelitis
H23: Pancreatitis
H24: Parotitis
H25: Pneumonia (Aspiration)
H26: Pneumonia (CAP)
H27: Pneumonia(HCAP)
H28: Prostatitis
H29: Pyelonephritis
H30: Sepsis
H31: Septic Knee
H32: Septic Arthritis
H33: Sinusitis
H34: Toxic Shock
H35: UTI (Lower)
H36: Wound Infection

Sheet Sheet1 (hidden)

Sheet Patient Data (hidden)

Sheet CreatinineClearanceCalculation (hidden)
C2: Age | D2: =Calculations!C4 -> 0
C3: Height | D3: =Calculations!C7 -> 0 | I3: Time | J3: 1 | K3: 2 | L3: 3 | M3: 4 | N3: 5 | O3: 6 | P3: 7 | Q3: 8 | R3: 9 | S3: 10 | T3: 11 | U3: 12 | V3: 13 | W3: 14 | X3: 15 | Y3: 16 | Z3: 17 | AA3: 18 | AB3: 19 | AC3: 20 | AD3: 21 | AE3: 22 | AF3: 23 | AG3: 24 | AH3: 25 | AI3: 26 | AJ3: 27 | AK3: 28 | AL3: 29 | AM3: 30 | AN3: 31 | AO3: 32 | AP3: 33 | AQ3: 34 | AR3: 35 | AS3: 36 | AT3: 37 | AU3: 38 | AV3: 39 | AW3: 40 | AX3: 41 | AY3: 42 | AZ3: 43 | BA3: 44 | BB3: 45 | BC3: 46 | BD3: 47 | BE3: 48 | BF3: 49 | BG3: 50 | BH3: 51 | BI3: 52 | BJ3: 53 | BK3: 54 | BL3: 55 | BM3: 56 | BN3: 57 | BO3: 58 | BP3: 59 | BQ3: 60 | BR3: 61 | BS3: 62 | BT3: 63 | BU3: 64 | BV3: 65 | BW3: 66 | BX3: 67 | BY3: 68 | BZ3: 69 | CA3: 70 | CB3: 71 | CC3: 72 | CD3: 73 | CE3: 74 | CF3: 75 | CG3: 76 | CH3: 77 | CI3: 78 | CJ3: 79 | CK3: 80 | CL3: 81 | CM3: 82 | CN3: 83 | CO3: 84 | CP3: 85 | CQ3: 86 | CR3: 87 | CS3: 88 | CT3: 89 | CU3: 90 | CV3: 91 | CW3: 92 | CX3: 93 | CY3: 94 | CZ3: 95 | DA3: 96 | DB3: 97 | DC3: 98 | DD3: 99 | DE3: 100 | DF3: 101 | DG3: 102 | DH3: 103 | DI3: 104 | DJ3: 105 | DK3: 106 | DL3: 107 | DM3: 108 | DN3: 109 | DO3: 110 | DP3: 111 | DQ3: 112 | DR3: 113 | DS3: 114 | DT3: 115 | DU3: 116 | DV3: 117 | DW3: 118 | DX3: 119 | DY3: 120 | DZ3: 121 | EA3: 122 | EB3: 123 | EC3: 124 | ED3: 125 | EE3: 126 | EF3: 127 | EG3: 128 | EH3: 129 | EI3: 130 | EJ3: 131 | EK3: 132 | EL3: 133 | EM3: 134 | EN3: 135 | EO3: 136 | EP3: 137 | EQ3: 138 | ER3: 139 | ES3: 140 | ET3: 141 | EU3: 142 | EV3: 143 | EW3: 144 | EX3: 145 | EY3: 146 | EZ3: 147 | FA3: 148 | FB3: 149 | FC3: 150 | FD3: 151 | FE3: 152 | FF3: 153 | FG3: 154 | FH3: 155 | FI3: 156 | FJ3: 157 | FK3: 158 | FL3: 159 | FM3: 160 | FN3: 161 | FO3: 162 | FP3: 163 | FQ3: 164 | FR3: 165 | FS3: 166 | FT3: 167 | FU3: 168
C4: Sex | D4: =Calculations!C11 -> Male | I4: cp | J4: =($D$9*10*EXP(-$E$17/(0.6*$D$6)*J3)+$D$16/$E$17*(1-EXP(-$E$17/(0.6*$D$6)*J3)))/10 ->  | K4: =($D$9*10*EXP(-$E$17/(0.6*$D$6)*K3)+$D$16/$E$17*(1-EXP(-$E$17/(0.6*$D$6)*K3)))/10 ->  | R4: =($D$9*10*EXP(-$E$17/(0.6*$D$6)*R3)+$D$16/$E$17*(1-EXP(-$E$17/(0.6*$D$6)*R3)))/10 ->  | S4: =($D$9*10*EXP(-$E$17/(0.6*$D$6)*S3)+$D$16/$E$17*(1-EXP(-$E$17/(0.6*$D$6)*S3)))/10 ->  | T4: =($D$9*10*EXP(-$E$17/(0.6*$D$6)*T3)+$D$16/$E$17*(1-EXP(-$E$17/(0.6*$D$6)*T3)))/10 ->  | U4: =($D$9*10*EXP(-$E$17/(0.6*$D$6)*U3)+$D$16/$E$17*(1-EXP(-$E$17/(0.6*$D$6)*U3)))/10 ->  | V4: =($D$9*10*EXP(-$E$17/(0.6*$D$6)*V3)+$D$16/$E$17*(1-EXP(-$E$17/(0.6*$D$6)*V3)))/10 ->  | W4: =($D$9*10*EXP(-$E$17/(0.6*$D$6)*W3)+$D$16/$E$17*(1-EXP(-$E$17/(0.6*$D$6)*W3)))/10 ->  | X4: =($D$9*10*EXP(-$E$17/(0.6*$D$6)*X3)+$D$16/$E$17*(1-EXP(-$E$17/(0.6*$D$6)*X3)))/10 ->  | Y4: =($D$9*10*EXP(-$E$17/(0.6*$D$6)*Y3)+$D$16/$E$17*(1-EXP(-$E$17/(0.6*$D$6)*Y3)))/10 ->  | Z4: =($D$9*10*EXP(-$E$17/(0.6*$D$6)*Z3)+$D$16/$E$17*(1-EXP(-$E$17/(0.6*$D$6)*Z3)))/10 ->  | AA4: =($D$9*10*EXP(-$E$17/(0.6*$D$6)*AA3)+$D$16/$E$17*(1-EXP(-$E$17/(0.6*$D$6)*AA3)))/10 ->  | AB4: =($D$9*10*EXP(-$E$17/(0.6*$D$6)*AB3)+$D$16/$E$17*(1-EXP(-$E$17/(0.6*$D$6)*AB3)))/10 ->  | AC4: =($D$9*10*EXP(-$E$17/(0.6*$D$6)*AC3)+$D$16/$E$17*(1-EXP(-$E$17/(0.6*$D$6)*AC3)))/10 ->  | AD4: =($D$9*10*EXP(-$E$17/(0.6*$D$6)*AD3)+$D$16/$E$17*(1-EXP(-$E$17/(0.6*$D$6)*AD3)))/10 ->  | AE4: =($D$9*10*EXP(-$E$17/(0.6*$D$6)*AE3)+$D$16/$E$17*(1-EXP(-$E$17/(0.6*$D$6)*AE3)))/10 ->  | AF4: =($D$9*10*EXP(-$E$17/(0.6*$D$6)*AF3)+$D$16/$E$17*(1-EXP(-$E$17/(0.6*$D$6)*AF3)))/10 ->  | AG4: =($D$9*10*EXP(-$E$17/(0.6*$D$6)*AG3)+$D$16/$E$17*(1-EXP(-$E$17/(0.6*$D$6)*AG3)))/10 ->  | AH4: =($D$9*10*EXP(-$E$17/(0.6*$D$6)*AH3)+$D$16/$E$17*(1-EXP(-$E$17/(0.6*$D$6)*AH3)))/10 ->  | AI4: =($D$9*10*EXP(-$E$17/(0.6*$D$6)*AI3)+$D$16/$E$17*(1-EXP(-$E$17/(0.6*$D$6)*AI3)))/10 ->  | AJ4: =($D$9*10*EXP(-$E$17/(0.6*$D$6)*AJ3)+$D$16/$E$17*(1-EXP(-$E$17/(0.6*$D$6)*AJ3)))/10 ->  | AK4: =($D$9*10*EXP(-$E$17/(0.6*$D$6)*AK3)+$D$16/$E$17*(1-EXP(-$E$17/(0.6*$D$6)*AK3)))/10 ->  | AL4: =($D$9*10*EXP(-$E$17/(0.6*$D$6)*AL3)+$D$16/$E$17*(1-EXP(-$E$17/(0.6*$D$6)*AL3)))/10 ->  | AM4: =($D$9*10*EXP(-$E$17/(0.6*$D$6)*AM3)+$D$16/$E$17*(1-EXP(-$E$17/(0.6*$D$6)*AM3)))/10 ->  | AN4: =($D$9*10*EXP(-$E$17/(0.6*$D$6)*AN3)+$D$16/$E$17*(1-EXP(-$E$17/(0.6*$D$6)*AN3)))/10 ->  | AO4: =($D$9*10*EXP(-$E$17/(0.6*$D$6)*AO3)+$D$16/$E$17*(1-EXP(-$E$17/(0.6*$D$6)*AO3)))/10 ->  | AP4: =($D$9*10*EXP(-$E$17/(0.6*$D$6)*AP3)+$D$16/$E$17*(1-EXP(-$E$17/(0.6*$D$6)*AP3)))/10 ->  | AQ4: =($D$9*10*EXP(-$E$17/(0.6*$D$6)*AQ3)+$D$16/$E$17*(1-EXP(-$E$17/(0.6*$D$6)*AQ3)))/10 ->  | AR4: =($D$9*10*EXP(-$E$17/(0.6*$D$6)*AR3)+$D$16/$E$17*(1-EXP(-$E$17/(0.6*$D$6)*AR3)))/10 ->  | AS4: =($D$9*10*EXP(-$E$17/(0.6*$D$6)*AS3)+$D$16/$E$17*(1-EXP(-$E$17/(0.6*$D$6)*AS3)))/10 ->  | AT4: =($D$9*10*EXP(-$E$17/(0.6*$D$6)*AT3)+$D$16/$E$17*(1-EXP(-$E$17/(0.6*$D$6)*AT3)))/10 ->  | AU4: =($D$9*10*EXP(-$E$17/(0.6*$D$6)*AU3)+$D$16/$E$17*(1-EXP(-$E$17/(0.6*$D$6)*AU3)))/10 ->  | AV4: =($D$9*10*EXP(-$E$17/(0.6*$D$6)*AV3)+$D$16/$E$17*(1-EXP(-$E$17/(0.6*$D$6)*AV3)))/10 ->  | AW4: =($D$9*10*EXP(-$E$17/(0.6*$D$6)*AW3)+$D$16/$E$17*(1-EXP(-$E$17/(0.6*$D$6)*AW3)))/10 ->  | AX4: =($D$9*10*EXP(-$E$17/(0.6*$D$6)*AX3)+$D$16/$E$17*(1-EXP(-$E$17/(0.6*$D$6)*AX3)))/10 ->  | AY4: =($D$9*10*EXP(-$E$17/(0.6*$D$6)*AY3)+$D$16/$E$17*(1-EXP(-$E$17/(0.6*$D$6)*AY3)))/10 ->  | AZ4: =($D$9*10*EXP(-$E$17/(0.6*$D$6)*AZ3)+$D$16/$E$17*(1-EXP(-$E$17/(0.6*$D$6)*AZ3)))/10 ->  | BA4: =($D$9*10*EXP(-$E$17/(0.6*$D$6)*BA3)+$D$16/$E$17*(1-EXP(-$E$17/(0.6*$D$6)*BA3)))/10 ->  | BB4: =($D$9*10*EXP(-$E$17/(0.6*$D$6)*BB3)+$D$16/$E$17*(1-EXP(-$E$17/(0.6*$D$6)*BB3)))/10 ->  | BC4: =($D$9*10*EXP(-$E$17/(0.6*$D$6)*BC3)+$D$16/$E$17*(1-EXP(-$E$17/(0.6*$D$6)*BC3)))/10 ->  | BD4: =($D$9*10*EXP(-$E$17/(0.6*$D$6)*BD3)+$D$16/$E$17*(1-EXP(-$E$17/(0.6*$D$6)*BD3)))/10 ->  | BE4: =($D$9*10*EXP(-$E$17/(0.6*$D$6)*BE3)+$D$16/$E$17*(1-EXP(-$E$17/(0.6*$D$6)*BE3)))/10 ->  | BF4: =($D$9*10*EXP(-$E$17/(0.6*$D$6)*BF3)+$D$16/$E$17*(1-EXP(-$E$17/(0.6*$D$6)*BF3)))/10 ->  | BG4: =($D$9*10*EXP(-$E$17/(0.6*$D$6)*BG3)+$D$16/$E$17*(1-EXP(-$E$17/(0.6*$D$6)*BG3)))/10 ->  | BH4: =($D$9*10*EXP(-$E$17/(0.6*$D$6)*BH3)+$D$16/$E$17*(1-EXP(-$E$17/(0.6*$D$6)*BH3)))/10 ->  | BI4: =($D$9*10*EXP(-$E$17/(0.6*$D$6)*BI3)+$D$16/$E$17*(1-EXP(-$E$17/(0.6*$D$6)*BI3)))/10 ->  | BJ4: =($D$9*10*EXP(-$E$17/(0.6*$D$6)*BJ3)+$D$16/$E$17*(1-EXP(-$E$17/(0.6*$D$6)*BJ3)))/10 ->  | BK4: =($D$9*10*EXP(-$E$17/(0.6*$D$6)*BK3)+$D$16/$E$17*(1-EXP(-$E$17/(0.6*$D$6)*BK3)))/10 ->  | BL4: =($D$9*10*EXP(-$E$17/(0.6*$D$6)*BL3)+$D$16/$E$17*(1-EXP(-$E$17/(0.6*$D$6)*BL3)))/10 ->  | BM4: =($D$9*10*EXP(-$E$17/(0.6*$D$6)*BM3)+$D$16/$E$17*(1-EXP(-$E$17/(0.6*$D$6)*BM3)))/10 ->  | BN4: =($D$9*10*EXP(-$E$17/(0.6*$D$6)*BN3)+$D$16/$E$17*(1-EXP(-$E$17/(0.6*$D$6)*BN3)))/10 ->  | BO4: =($D$9*10*EXP(-$E$17/(0.6*$D$6)*BO3)+$D$16/$E$17*(1-EXP(-$E$17/(0.6*$D$6)*BO3)))/10 ->  | BP4: =($D$9*10*EXP(-$E$17/(0.6*$D$6)*BP3)+$D$16/$E$17*(1-EXP(-$E$17/(0.6*$D$6)*BP3)))/10 ->  | BQ4: =($D$9*10*EXP(-$E$17/(0.6*$D$6)*BQ3)+$D$16/$E$17*(1-EXP(-$E$17/(0.6*$D$6)*BQ3)))/10 ->  | BR4: =($D$9*10*EXP(-$E$17/(0.6*$D$6)*BR3)+$D$16/$E$17*(1-EXP(-$E$17/(0.6*$D$6)*BR3)))/10 ->  | BS4: =($D$9*10*EXP(-$E$17/(0.6*$D$6)*BS3)+$D$16/$E$17*(1-EXP(-$E$17/(0.6*$D$6)*BS3)))/10 ->  | BT4: =($D$9*10*EXP(-$E$17/(0.6*$D$6)*BT3)+$D$16/$E$17*(1-EXP(-$E$17/(0.6*$D$6)*BT3)))/10 ->  | BU4: =($D$9*10*EXP(-$E$17/(0.6*$D$6)*BU3)+$D$16/$E$17*(1-EXP(-$E$17/(0.6*$D$6)*BU3)))/10 ->  | BV4: =($D$9*10*EXP(-$E$17/(0.6*$D$6)*BV3)+$D$16/$E$17*(1-EXP(-$E$17/(0.6*$D$6)*BV3)))/10 ->  | BW4: =($D$9*10*EXP(-$E$17/(0.6*$D$6)*BW3)+$D$16/$E$17*(1-EXP(-$E$17/(0.6*$D$6)*BW3)))/10 ->  | BX4: =($D$9*10*EXP(-$E$17/(0.6*$D$6)*BX3)+$D$16/$E$17*(1-EXP(-$E$17/(0.6*$D$6)*BX3)))/10 ->  | BY4: =($D$9*10*EXP(-$E$17/(0.6*$D$6)*BY3)+$D$16/$E$17*(1-EXP(-$E$17/(0.6*$D$6)*BY3)))/10 ->  | BZ4: =($D$9*10*EXP(-$E$17/(0.6*$D$6)*BZ3)+$D$16/$E$17*(1-EXP(-$E$17/(0.6*$D$6)*BZ3)))/10 ->  | CA4: =($D$9*10*EXP(-$E$17/(0.6*$D$6)*CA3)+$D$16/$E$17*(1-EXP(-$E$17/(0.6*$D$6)*CA3)))/10 ->  | CB4: =($D$9*10*EXP(-$E$17/(0.6*$D$6)*CB3)+$D$16/$E$17*(1-EXP(-$E$17/(0.6*$D$6)*CB3)))/10 ->  | CC4: =($D$9*10*EXP(-$E$17/(0.6*$D$6)*CC3)+$D$16/$E$17*(1-EXP(-$E$17/(0.6*$D$6)*CC3)))/10 ->  | CD4: =($D$9*10*EXP(-$E$17/(0.6*$D$6)*CD3)+$D$16/$E$17*(1-EXP(-$E$17/(0.6*$D$6)*CD3)))/10 ->  | CE4: =($D$9*10*EXP(-$E$17/(0.6*$D$6)*CE3)+$D$16/$E$17*(1-EXP(-$E$17/(0.6*$D$6)*CE3)))/10 ->  | CF4: =($D$9*10*EXP(-$E$17/(0.6*$D$6)*CF3)+$D$16/$E$17*(1-EXP(-$E$17/(0.6*$D$6)*CF3)))/10 ->  | CG4: =($D$9*10*EXP(-$E$17/(0.6*$D$6)*CG3)+$D$16/$E$17*(1-EXP(-$E$17/(0.6*$D$6)*CG3)))/10 ->  | CH4: =($D$9*10*EXP(-$E$17/(0.6*$D$6)*CH3)+$D$16/$E$17*(1-EXP(-$E$17/(0.6*$D$6)*CH3)))/10 ->  | CI4: =($D$9*10*EXP(-$E$17/(0.6*$D$6)*CI3)+$D$16/$E$17*(1-EXP(-$E$17/(0.6*$D$6)*CI3)))/10 ->  | CJ4: =($D$9*10*EXP(-$E$17/(0.6*$D$6)*CJ3)+$D$16/$E$17*(1-EXP(-$E$17/(0.6*$D$6)*CJ3)))/10 ->  | CK4: =($D$9*10*EXP(-$E$17/(0.6*$D$6)*CK3)+$D$16/$E$17*(1-EXP(-$E$17/(0.6*$D$6)*CK3)))/10 ->  | CL4: =($D$9*10*EXP(-$E$17/(0.6*$D$6)*CL3)+$D$16/$E$17*(1-EXP(-$E$17/(0.6*$D$6)*CL3)))/10 ->  | CM4: =($D$9*10*EXP(-$E$17/(0.6*$D$6)*CM3)+$D$16/$E$17*(1-EXP(-$E$17/(0.6*$D$6)*CM3)))/10 ->  | CN4: =($D$9*10*EXP(-$E$17/(0.6*$D$6)*CN3)+$D$16/$E$17*(1-EXP(-$E$17/(0.6*$D$6)*CN3)))/10 ->  | CO4: =($D$9*10*EXP(-$E$17/(0.6*$D$6)*CO3)+$D$16/$E$17*(1-EXP(-$E$17/(0.6*$D$6)*CO3)))/10 ->  | CP4: =($D$9*10*EXP(-$E$17/(0.6*$D$6)*CP3)+$D$16/$E$17*(1-EXP(-$E$17/(0.6*$D$6)*CP3)))/10 ->  | CQ4: =($D$9*10*EXP(-$E$17/(0.6*$D$6)*CQ3)+$D$16/$E$17*(1-EXP(-$E$17/(0.6*$D$6)*CQ3)))/10 ->  | CR4: =($D$9*10*EXP(-$E$17/(0.6*$D$6)*CR3)+$D$16/$E$17*(1-EXP(-$E$17/(0.6*$D$6)*CR3)))/10 ->  | CS4: =($D$9*10*EXP(-$E$17/(0.6*$D$6)*CS3)+$D$16/$E$17*(1-EXP(-$E$17/(0.6*$D$6)*CS3)))/10 ->  | CT4: =($D$9*10*EXP(-$E$17/(0.6*$D$6)*CT3)+$D$16/$E$17*(1-EXP(-$E$17/(0.6*$D$6)*CT3)))/10 ->  | CU4: =($D$9*10*EXP(-$E$17/(0.6*$D$6)*CU3)+$D$16/$E$17*(1-EXP(-$E$17/(0.6*$D$6)*CU3)))/10 ->  | CV4: =($D$9*10*EXP(-$E$17/(0.6*$D$6)*CV3)+$D$16/$E$17*(1-EXP(-$E$17/(0.6*$D$6)*CV3)))/10 ->  | CW4: =($D$9*10*EXP(-$E$17/(0.6*$D$6)*CW3)+$D$16/$E$17*(1-EXP(-$E$17/(0.6*$D$6)*CW3)))/10 ->  | CX4: =($D$9*10*EXP(-$E$17/(0.6*$D$6)*CX3)+$D$16/$E$17*(1-EXP(-$E$17/(0.6*$D$6)*CX3)))/10 ->  | CY4: =($D$9*10*EXP(-$E$17/(0.6*$D$6)*CY3)+$D$16/$E$17*(1-EXP(-$E$17/(0.6*$D$6)*CY3)))/10 ->  | CZ4: =($D$9*10*EXP(-$E$17/(0.6*$D$6)*CZ3)+$D$16/$E$17*(1-EXP(-$E$17/(0.6*$D$6)*CZ3)))/10 ->  | DA4: =($D$9*10*EXP(-$E$17/(0.6*$D$6)*DA3)+$D$16/$E$17*(1-EXP(-$E$17/(0.6*$D$6)*DA3)))/10 ->  | DB4: =($D$9*10*EXP(-$E$17/(0.6*$D$6)*DB3)+$D$16/$E$17*(1-EXP(-$E$17/(0.6*$D$6)*DB3)))/10 ->  | DC4: =($D$9*10*EXP(-$E$17/(0.6*$D$6)*DC3)+$D$16/$E$17*(1-EXP(-$E$17/(0.6*$D$6)*DC3)))/10 ->  | DD4: =($D$9*10*EXP(-$E$17/(0.6*$D$6)*DD3)+$D$16/$E$17*(1-EXP(-$E$17/(0.6*$D$6)*DD3)))/10 ->  | DE4: =($D$9*10*EXP(-$E$17/(0.6*$D$6)*DE3)+$D$16/$E$17*(1-EXP(-$E$17/(0.6*$D$6)*DE3)))/10 ->  | DF4: =($D$9*10*EXP(-$E$17/(0.6*$D$6)*DF3)+$D$16/$E$17*(1-EXP(-$E$17/(0.6*$D$6)*DF3)))/10 ->  | DG4: =($D$9*10*EXP(-$E$17/(0.6*$D$6)*DG3)+$D$16/$E$17*(1-EXP(-$E$17/(0.6*$D$6)*DG3)))/10 ->  | DH4: =($D$9*10*EXP(-$E$17/(0.6*$D$6)*DH3)+$D$16/$E$17*(1-EXP(-$E$17/(0.6*$D$6)*DH3)))/10 ->  | DI4: =($D$9*10*EXP(-$E$17/(0.6*$D$6)*DI3)+$D$16/$E$17*(1-EXP(-$E$17/(0.6*$D$6)*DI3)))/10 ->  | DJ4: =($D$9*10*EXP(-$E$17/(0.6*$D$6)*DJ3)+$D$16/$E$17*(1-EXP(-$E$17/(0.6*$D$6)*DJ3)))/10 ->  | DK4: =($D$9*10*EXP(-$E$17/(0.6*$D$6)*DK3)+$D$16/$E$17*(1-EXP(-$E$17/(0.6*$D$6)*DK3)))/10 ->  | DL4: =($D$9*10*EXP(-$E$17/(0.6*$D$6)*DL3)+$D$16/$E$17*(1-EXP(-$E$17/(0.6*$D$6)*DL3)))/10 ->  | DM4: =($D$9*10*EXP(-$E$17/(0.6*$D$6)*DM3)+$D$16/$E$17*(1-EXP(-$E$17/(0.6*$D$6)*DM3)))/10 ->  | DN4: =($D$9*10*EXP(-$E$17/(0.6*$D$6)*DN3)+$D$16/$E$17*(1-EXP(-$E$17/(0.6*$D$6)*DN3)))/10 ->  | DO4: =($D$9*10*EXP(-$E$17/(0.6*$D$6)*DO3)+$D$16/$E$17*(1-EXP(-$E$17/(0.6*$D$6)*DO3)))/10 ->  | DP4: =($D$9*10*EXP(-$E$17/(0.6*$D$6)*DP3)+$D$16/$E$17*(1-EXP(-$E$17/(0.6*$D$6)*DP3)))/10 ->  | DQ4: =($D$9*10*EXP(-$E$17/(0.6*$D$6)*DQ3)+$D$16/$E$17*(1-EXP(-$E$17/(0.6*$D$6)*DQ3)))/10 ->  | DR4: =($D$9*10*EXP(-$E$17/(0.6*$D$6)*DR3)+$D$16/$E$17*(1-EXP(-$E$17/(0.6*$D$6)*DR3)))/10 ->  | DS4: =($D$9*10*EXP(-$E$17/(0.6*$D$6)*DS3)+$D$16/$E$17*(1-EXP(-$E$17/(0.6*$D$6)*DS3)))/10 ->  | DT4: =($D$9*10*EXP(-$E$17/(0.6*$D$6)*DT3)+$D$16/$E$17*(1-EXP(-$E$17/(0.6*$D$6)*DT3)))/10 ->  | DU4: =($D$9*10*EXP(-$E$17/(0.6*$D$6)*DU3)+$D$16/$E$17*(1-EXP(-$E$17/(0.6*$D$6)*DU3)))/10 ->  | DV4: =($D$9*10*EXP(-$E$17/(0.6*$D$6)*DV3)+$D$16/$E$17*(1-EXP(-$E$17/(0.6*$D$6)*DV3)))/10 ->  | DW4: =($D$9*10*EXP(-$E$17/(0.6*$D$6)*DW3)+$D$16/$E$17*(1-EXP(-$E$17/(0.6*$D$6)*DW3)))/10 ->  | DX4: =($D$9*10*EXP(-$E$17/(0.6*$D$6)*DX3)+$D$16/$E$17*(1-EXP(-$E$17/(0.6*$D$6)*DX3)))/10 ->  | DY4: =($D$9*10*EXP(-$E$17/(0.6*$D$6)*DY3)+$D$16/$E$17*(1-EXP(-$E$17/(0.6*$D$6)*DY3)))/10 ->  | DZ4: =($D$9*10*EXP(-$E$17/(0.6*$D$6)*DZ3)+$D$16/$E$17*(1-EXP(-$E$17/(0.6*$D$6)*DZ3)))/10 ->  | EA4: =($D$9*10*EXP(-$E$17/(0.6*$D$6)*EA3)+$D$16/$E$17*(1-EXP(-$E$17/(0.6*$D$6)*EA3)))/10 ->  | EB4: =($D$9*10*EXP(-$E$17/(0.6*$D$6)*EB3)+$D$16/$E$17*(1-EXP(-$E$17/(0.6*$D$6)*EB3)))/10 ->  | EC4: =($D$9*10*EXP(-$E$17/(0.6*$D$6)*EC3)+$D$16/$E$17*(1-EXP(-$E$17/(0.6*$D$6)*EC3)))/10 ->  | ED4: =($D$9*10*EXP(-$E$17/(0.6*$D$6)*ED3)+$D$16/$E$17*(1-EXP(-$E$17/(0.6*$D$6)*ED3)))/10 ->  | EE4: =($D$9*10*EXP(-$E$17/(0.6*$D$6)*EE3)+$D$16/$E$17*(1-EXP(-$E$17/(0.6*$D$6)*EE3)))/10 ->  | EF4: =($D$9*10*EXP(-$E$17/(0.6*$D$6)*EF3)+$D$16/$E$17*(1-EXP(-$E$17/(0.6*$D$6)*EF3)))/10 ->  | EG4: =($D$9*10*EXP(-$E$17/(0.6*$D$6)*EG3)+$D$16/$E$17*(1-EXP(-$E$17/(0.6*$D$6)*EG3)))/10 ->  | EH4: =($D$9*10*EXP(-$E$17/(0.6*$D$6)*EH3)+$D$16/$E$17*(1-EXP(-$E$17/(0.6*$D$6)*EH3)))/10 ->  | EI4: =($D$9*10*EXP(-$E$17/(0.6*$D$6)*EI3)+$D$16/$E$17*(1-EXP(-$E$17/(0.6*$D$6)*EI3)))/10 ->  | EJ4: =($D$9*10*EXP(-$E$17/(0.6*$D$6)*EJ3)+$D$16/$E$17*(1-EXP(-$E$17/(0.6*$D$6)*EJ3)))/10 ->  | EK4: =($D$9*10*EXP(-$E$17/(0.6*$D$6)*EK3)+$D$16/$E$17*(1-EXP(-$E$17/(0.6*$D$6)*EK3)))/10 ->  | EL4: =($D$9*10*EXP(-$E$17/(0.6*$D$6)*EL3)+$D$16/$E$17*(1-EXP(-$E$17/(0.6*$D$6)*EL3)))/10 ->  | EM4: =($D$9*10*EXP(-$E$17/(0.6*$D$6)*EM3)+$D$16/$E$17*(1-EXP(-$E$17/(0.6*$D$6)*EM3)))/10 ->  | EN4: =($D$9*10*EXP(-$E$17/(0.6*$D$6)*EN3)+$D$16/$E$17*(1-EXP(-$E$17/(0.6*$D$6)*EN3)))/10 ->  | EO4: =($D$9*10*EXP(-$E$17/(0.6*$D$6)*EO3)+$D$16/$E$17*(1-EXP(-$E$17/(0.6*$D$6)*EO3)))/10 ->  | EP4: =($D$9*10*EXP(-$E$17/(0.6*$D$6)*EP3)+$D$16/$E$17*(1-EXP(-$E$17/(0.6*$D$6)*EP3)))/10 ->  | EQ4: =($D$9*10*EXP(-$E$17/(0.6*$D$6)*EQ3)+$D$16/$E$17*(1-EXP(-$E$17/(0.6*$D$6)*EQ3)))/10 ->  | ER4: =($D$9*10*EXP(-$E$17/(0.6*$D$6)*ER3)+$D$16/$E$17*(1-EXP(-$E$17/(0.6*$D$6)*ER3)))/10 ->  | ES4: =($D$9*10*EXP(-$E$17/(0.6*$D$6)*ES3)+$D$16/$E$17*(1-EXP(-$E$17/(0.6*$D$6)*ES3)))/10 ->  | ET4: =($D$9*10*EXP(-$E$17/(0.6*$D$6)*ET3)+$D$16/$E$17*(1-EXP(-$E$17/(0.6*$D$6)*ET3)))/10 ->  | EU4: =($D$9*10*EXP(-$E$17/(0.6*$D$6)*EU3)+$D$16/$E$17*(1-EXP(-$E$17/(0.6*$D$6)*EU3)))/10 ->  | EV4: =($D$9*10*EXP(-$E$17/(0.6*$D$6)*EV3)+$D$16/$E$17*(1-EXP(-$E$17/(0.6*$D$6)*EV3)))/10 ->  | EW4: =($D$9*10*EXP(-$E$17/(0.6*$D$6)*EW3)+$D$16/$E$17*(1-EXP(-$E$17/(0.6*$D$6)*EW3)))/10 ->  | EX4: =($D$9*10*EXP(-$E$17/(0.6*$D$6)*EX3)+$D$16/$E$17*(1-EXP(-$E$17/(0.6*$D$6)*EX3)))/10 ->  | EY4: =($D$9*10*EXP(-$E$17/(0.6*$D$6)*EY3)+$D$16/$E$17*(1-EXP(-$E$17/(0.6*$D$6)*EY3)))/10 ->  | EZ4: =($D$9*10*EXP(-$E$17/(0.6*$D$6)*EZ3)+$D$16/$E$17*(1-EXP(-$E$17/(0.6*$D$6)*EZ3)))/10 ->  | FA4: =($D$9*10*EXP(-$E$17/(0.6*$D$6)*FA3)+$D$16/$E$17*(1-EXP(-$E$17/(0.6*$D$6)*FA3)))/10 ->  | FB4: =($D$9*10*EXP(-$E$17/(0.6*$D$6)*FB3)+$D$16/$E$17*(1-EXP(-$E$17/(0.6*$D$6)*FB3)))/10 ->  | FC4: =($D$9*10*EXP(-$E$17/(0.6*$D$6)*FC3)+$D$16/$E$17*(1-EXP(-$E$17/(0.6*$D$6)*FC3)))/10 ->  | FD4: =($D$9*10*EXP(-$E$17/(0.6*$D$6)*FD3)+$D$16/$E$17*(1-EXP(-$E$17/(0.6*$D$6)*FD3)))/10 ->  | FE4: =($D$9*10*EXP(-$E$17/(0.6*$D$6)*FE3)+$D$16/$E$17*(1-EXP(-$E$17/(0.6*$D$6)*FE3)))/10 ->  | FF4: =($D$9*10*EXP(-$E$17/(0.6*$D$6)*FF3)+$D$16/$E$17*(1-EXP(-$E$17/(0.6*$D$6)*FF3)))/10 ->  | FG4: =($D$9*10*EXP(-$E$17/(0.6*$D$6)*FG3)+$D$16/$E$17*(1-EXP(-$E$17/(0.6*$D$6)*FG3)))/10 ->  | FH4: =($D$9*10*EXP(-$E$17/(0.6*$D$6)*FH3)+$D$16/$E$17*(1-EXP(-$E$17/(0.6*$D$6)*FH3)))/10 ->  | FI4: =($D$9*10*EXP(-$E$17/(0.6*$D$6)*FI3)+$D$16/$E$17*(1-EXP(-$E$17/(0.6*$D$6)*FI3)))/10 ->  | FJ4: =($D$9*10*EXP(-$E$17/(0.6*$D$6)*FJ3)+$D$16/$E$17*(1-EXP(-$E$17/(0.6*$D$6)*FJ3)))/10 ->  | FK4: =($D$9*10*EXP(-$E$17/(0.6*$D$6)*FK3)+$D$16/$E$17*(1-EXP(-$E$17/(0.6*$D$6)*FK3)))/10 ->  | FL4: =($D$9*10*EXP(-$E$17/(0.6*$D$6)*FL3)+$D$16/$E$17*(1-EXP(-$E$17/(0.6*$D$6)*FL3)))/10 ->  | FM4: =($D$9*10*EXP(-$E$17/(0.6*$D$6)*FM3)+$D$16/$E$17*(1-EXP(-$E$17/(0.6*$D$6)*FM3)))/10 ->  | FN4: =($D$9*10*EXP(-$E$17/(0.6*$D$6)*FN3)+$D$16/$E$17*(1-EXP(-$E$17/(0.6*$D$6)*FN3)))/10 ->  | FO4: =($D$9*10*EXP(-$E$17/(0.6*$D$6)*FO3)+$D$16/$E$17*(1-EXP(-$E$17/(0.6*$D$6)*FO3)))/10 ->  | FP4: =($D$9*10*EXP(-$E$17/(0.6*$D$6)*FP3)+$D$16/$E$17*(1-EXP(-$E$17/(0.6*$D$6)*FP3)))/10 ->  | FQ4: =($D$9*10*EXP(-$E$17/(0.6*$D$6)*FQ3)+$D$16/$E$17*(1-EXP(-$E$17/(0.6*$D$6)*FQ3)))/10 ->  | FR4: =($D$9*10*EXP(-$E$17/(0.6*$D$6)*FR3)+$D$16/$E$17*(1-EXP(-$E$17/(0.6*$D$6)*FR3)))/10 ->  | FS4: =($D$9*10*EXP(-$E$17/(0.6*$D$6)*FS3)+$D$16/$E$17*(1-EXP(-$E$17/(0.6*$D$6)*FS3)))/10 ->  | FT4: =($D$9*10*EXP(-$E$17/(0.6*$D$6)*FT3)+$D$16/$E$17*(1-EXP(-$E$17/(0.6*$D$6)*FT3)))/10 ->  | FU4: =($D$9*10*EXP(-$E$17/(0.6*$D$6)*FU3)+$D$16/$E$17*(1-EXP(-$E$17/(0.6*$D$6)*FU3)))/10 -> 
C5: Lean Body Weight | D5: =Calculations!C19 -> 0
C6: Total Body Weight | D6: =Calculations!C10 -> 0
C7: Surface Area | D7: =Calculations!C23 -> 0 | E7: Fit Scr | F7: SSE | I7: Minimum Creatinine Allowed
C8: Serum Creatinine Most Recent | D8: =IF(I8<Calculations!C12,Calculations!C12*Calculations!G11,I8*Calculations!G11) -> 0 | E8: =(D9*10*EXP((-E17/(0.6*D6))*D10)+((D16/E17)*(1-EXP(-(E17/(0.6*D6)*D10)))))/10 ->  | F8: =(D8-E8)^2 ->  | I8: =IF(Calculations!C4>=18,IF(OR(Calculations!G8="Functional",Calculations!G8="Paraplegia",Calculations!G8="Quadraplegia",Calculations!E14="Yes"),0.5,0.7),Calculations!C12) -> 0
C9: Serum Creatinine Old | D9: =IF(I9<Calculations!C13,Calculations!C13*Calculations!G11,I9*Calculations!G11) -> 0 | F9: Minimized | I9: =IF(Calculations!C4>=18,IF(OR(Calculations!G8="Functional",Calculations!G8="Paraplegia",Calculations!G8="Quadraplegia",Calculations!E14="Yes"),0.5,0.7),Calculations!C13) -> 0
C10: Time Between Creatinine | D10: =Calculations!C14 -> 0
C11: Rate In (mg/hour)
C12: Age < 1 | D12: =D3*2.54*0.45*600/1000 -> 0
C13: Age >=1 < 12 | D13: =D3*2.54*0.55*600/1000 -> 0
C14: Age >= 12 < 18 | D14: =IF(D4="Male",D3*2.54*0.7*600/1000,D3*2.54*0.55*600/1000) -> 0
C15: >=18 | D15: =IF(D4="Male",(28-(0.2*D2))*D5/24,0.85*(28-(0.2*D2))*D5/24) -> 0
C16: Rate In (mg/hour) | D16: =IF(D2<1,D12,IF(D2<12,D13,IF(D2<18,D14,IF(D2>=18,D15)))) -> 0
C17: clcr (L/hour) using most recent | D17: =IF(D2<2,(D12/(D8*10)),IF(D2<13,D13/(D8*10),IF(D2<18,D14/(D8*10),IF(D2>=18,D15/(D8*10))))) ->  | E17: 4.461442037 | F17: Fit value
C18: Clcr (ml/min) using most recent | D18: =D17*1000/60 ->  | E18: =E17*1000/60 -> 74.35736728
C19: Clcr (ml/min) to Return | E19: =IF(OR(Calculations!C12=0,Calculations!C13=0),0,E18) -> 0
C20: T1/2 Creatinine | E20: =0.693/(E17/(0.6*D6)) -> 
C21: Equivalent Scr (mg/dl) | E21: =D16/(E17*10) -> 0
C22: Maximum Rate of Increase In Scr (mg/dl/day) | E22: =D16*24/((0.6*D6)*10) -> 

Sheet Version (hidden)
A1: C:\Users\marshall\Documents\Kinetics Update\withvaribale creatinines

Sheet AUCs (hidden)
D2: Infusion | E2: Infusion | F2: Infusion | G2: Post Infusion
D3: 0 | E3: 1 | F3: 2 | G3: 3 | H3: 4 | I3: 5 | J3: 6 | K3: 7 | L3: 8 | M3: 9 | N3: 10 | O3: 11 | P3: 12 | Q3: 13 | R3: 14 | S3: 15 | T3: 16 | U3: 17 | V3: 18 | W3: 19 | X3: 20 | Y3: 21 | Z3: 22 | AA3: 23 | AB3: 24 | AC3: 25 | AD3: 26 | AE3: 27 | AF3: 28 | AG3: 29 | AH3: 30 | AI3: 31 | AJ3: 32 | AK3: 33 | AL3: 34 | AM3: 35 | AN3: 36 | AO3: 37 | AP3: 38 | AQ3: 39 | AR3: 40 | AS3: 41 | AT3: 42 | AU3: 43 | AV3: 44 | AW3: 45 | AX3: 46 | AY3: 47 | AZ3: 48 | BA3: 49 | BB3: 50 | BC3: 51 | BD3: 52 | BE3: 53 | BF3: 54 | BG3: 55 | BH3: 56 | BI3: 57 | BJ3: 58 | BK3: 59 | BL3: 60 | BM3: 61 | BN3: 62 | BO3: 63 | BP3: 64 | BQ3: 65 | BR3: 66 | BS3: 67 | BT3: 68 | BU3: 69 | BV3: 70 | BW3: 71 | BX3: 72 | BY3: 73 | BZ3: 74 | CA3: 75 | CB3: 76 | CC3: 77 | CD3: 78 | CE3: 79 | CF3: 80 | CG3: 81 | CH3: 82 | CI3: 83 | CJ3: 84 | CK3: 85 | CL3: 86 | CM3: 87 | CN3: 88 | CO3: 89 | CP3: 90 | CQ3: 91 | CR3: 92 | CS3: 93 | CT3: 94 | CU3: 95 | CV3: 96 | CW3: 97 | CX3: 98 | CY3: 99 | CZ3: 100 | DA3: 101 | DB3: 102 | DC3: 103 | DD3: 104 | DE3: 105 | DF3: 106 | DG3: 107 | DH3: 108 | DI3: 109 | DJ3: 110 | DK3: 111 | DL3: 112 | DM3: 113 | DN3: 114 | DO3: 115 | DP3: 116 | DQ3: 117 | DR3: 118 | DS3: 119 | DT3: 120 | DU3: 121 | DV3: 122 | DW3: 123 | DX3: 124 | DY3: 125 | DZ3: 126 | EA3: 126 | EB3: 126 | EC3: 126 | ED3: 126
A4: Population | D4: 0 | E4: 1 | F4: 2 | G4: 3 | H4: 4 | I4: 5 | J4: 6 | K4: 7 | L4: 8 | M4: 9 | N4: 10 | O4: 11 | P4: 12 | Q4: 13 | R4: 14 | S4: 15 | T4: 16 | U4: 17 | V4: 18 | W4: 19 | X4: 20 | Y4: 21 | Z4: 22 | AA4: 23 | AB4: 24 | AC4: 25 | AD4: 26 | AE4: 27 | AF4: 28 | AG4: 29 | AH4: 30 | AI4: 31 | AJ4: 32 | AK4: 33 | AL4: 34 | AM4: 35 | AN4: 36 | AO4: 37 | AP4: 38 | AQ4: 39 | AR4: 40 | AS4: 41 | AT4: 42 | AU4: 43 | AV4: 44 | AW4: 45 | AX4: 46 | AY4: 47 | AZ4: 48 | BA4: 49 | BB4: 50 | BC4: 51 | BD4: 52 | BE4: 53 | BF4: 54 | BG4: 55 | BH4: 56 | BI4: 57 | BJ4: 58 | BK4: 59 | BL4: 60 | BM4: 61 | BN4: 62 | BO4: 63 | BP4: 64 | BQ4: 65 | BR4: 66 | BS4: 67 | BT4: 68 | BU4: 69 | BV4: 70 | BW4: 71 | BX4: 72 | BY4: 73 | BZ4: 74 | CA4: 75 | CB4: 76 | CC4: 77 | CD4: 78 | CE4: 79 | CF4: 80 | CG4: 81 | CH4: 82 | CI4: 83 | CJ4: 84 | CK4: 85 | CL4: 86 | CM4: 87 | CN4: 88 | CO4: 89 | CP4: 90 | CQ4: 91 | CR4: 92 | CS4: 93 | CT4: 94 | CU4: 95 | CV4: 96 | CW4: 97 | CX4: 98 | CY4: 99 | CZ4: 100 | DA4: 101 | DB4: 102 | DC4: 103 | DD4: 104 | DE4: 105 | DF4: 106 | DG4: 107 | DH4: 108 | DI4: 109 | DJ4: 110 | DK4: 111 | DL4: 112 | DM4: 113 | DN4: 114 | DO4: 115 | DP4: 116 | DQ4: 117 | DR4: 118 | DS4: 119 | DT4: 120 | DU4: 121 | DV4: 122 | DW4: 123 | DX4: 124 | DY4: 125 | DZ4: 126 | EA4: 127 | EB4: 128 | EC4: 129 | ED4: 130 | EE4: 131 | EF4: 132 | EG4: 133 | EH4: 134 | EI4: 135 | EJ4: 136 | EK4: 137 | EL4: 138 | EM4: 139 | EN4: 140 | EO4: 141 | EP4: 142 | EQ4: 143 | ER4: 144 | ES4: 145 | ET4: 146 | EU4: 147 | EV4: 148 | EW4: 149 | EX4: 150 | EY4: 151 | EZ4: 152 | FA4: 153 | FB4: 154 | FC4: 155 | FD4: 156 | FE4: 157 | FF4: 158 | FG4: 159 | FH4: 160 | FI4: 161 | FJ4: 162 | FK4: 163 | FL4: 164 | FM4: 165 | FN4: 166 | FO4: 167 | FP4: 168 | FQ4: 169 | FR4: 170 | FS4: 171 | FT4: 172 | FU4: 173 | FV4: 174 | FW4: 175 | FX4: 176 | FY4: 177 | FZ4: 178 | GA4: 179 | GB4: 180 | GC4: 181 | GD4: 182 | GE4: 183 | GF4: 184 | GG4: 185 | GH4: 186 | GI4: 187 | GJ4: 188 | GK4: 189 | GL4: 190 | GM4: 191 | GN4: 192 | GO4: 193 | GP4: 194 | GQ4: 195 | GR4: 196 | GS4: 197 | GT4: 198 | GU4: 199 | GV4: 200 | GW4: 201 | GX4: 202 | GY4: 203 | GZ4: 204 | HA4: 205 | HB4: 206 | HC4: 207 | HD4: 208 | HE4: 209 | HF4: 210 | HG4: 211 | HH4: 212 | HI4: 213
B5: per day | C5: Time into dosing Interval (hours) | D5: 0 | E5: =IF(E4<=$B26,E4/$B26,E4-$B26+1) -> 1.75 | F5: 2.75 | G5: 3.75 | H5: 4.75 | I5: 5.75 | J5: 6.75 | K5: 7.75 | L5: 8.75 | M5: 9.75 | N5: 10.75 | O5: 11.75 | P5: 12.75 | Q5: 13.75 | R5: 14.75 | S5: 15.75 | T5: 16.75 | U5: 17.75 | V5: 18.75 | W5: 19.75 | X5: 20.75 | Y5: 21.75 | Z5: 22.75 | AA5: 23.75 | AB5: 24.75 | AC5: 25.75 | AD5: 26.75 | AE5: 27.75 | AF5: 28.75 | AG5: 29.75 | AH5: 30.75 | AI5: 31.75 | AJ5: 32.75 | AK5: 33.75 | AL5: 34.75 | AM5: 35.75 | AN5: 36.75 | AO5: 37.75 | AP5: 38.75 | AQ5: 39.75 | AR5: 40.75 | AS5: 41.75 | AT5: 42.75 | AU5: 43.75 | AV5: 44.75 | AW5: 45.75 | AX5: 46.75 | AY5: 47.75 | AZ5: 48.75 | BA5: 49.75 | BB5: 50.75 | BC5: 51.75 | BD5: 52.75 | BE5: 53.75 | BF5: 54.75 | BG5: 55.75 | BH5: 56.75 | BI5: 57.75 | BJ5: 58.75 | BK5: 59.75 | BL5: 60.75 | BM5: 61.75 | BN5: 62.75 | BO5: 63.75 | BP5: 64.75 | BQ5: =IF(BQ4<=$B26,BQ4/$B26,BQ4-$B26+1) -> 65.75 | BR5: 66.75 | BS5: 67.75 | BT5: 68.75 | BU5: 69.75 | BV5: 70.75 | BW5: 71.75 | BX5: 72.75 | BY5: 73.75 | BZ5: 74.75 | CA5: 75.75 | CB5: 76.75 | CC5: 77.75 | CD5: 78.75 | CE5: 79.75 | CF5: 80.75 | CG5: 81.75 | CH5: 82.75 | CI5: 83.75 | CJ5: 84.75 | CK5: 85.75 | CL5: 86.75 | CM5: 87.75 | CN5: 88.75 | CO5: 89.75 | CP5: 90.75 | CQ5: 91.75 | CR5: 92.75 | CS5: 93.75 | CT5: 94.75 | CU5: 95.75 | CV5: 96.75 | CW5: 97.75 | CX5: 98.75 | CY5: 99.75 | CZ5: 100.75 | DA5: 101.75 | DB5: 102.75 | DC5: 103.75 | DD5: 104.75 | DE5: 105.75 | DF5: 106.75 | DG5: 107.75 | DH5: 108.75 | DI5: 109.75 | DJ5: 110.75 | DK5: 111.75 | DL5: 112.75 | DM5: 113.75 | DN5: 114.75 | DO5: 115.75 | DP5: 116.75 | DQ5: 117.75 | DR5: 118.75 | DS5: 119.75 | DT5: 120.75 | DU5: 121.75 | DV5: 122.75 | DW5: 123.75 | DX5: 124.75 | DY5: 125.75 | DZ5: 126.75 | EA5: 127.75 | EB5: 128.75 | EC5: =IF(EC4<=$B26,EC4/$B26,EC4-$B26+1) -> 129.75 | ED5: 130.75 | EE5: 131.75 | EF5: 132.75 | EG5: 133.75 | EH5: 134.75 | EI5: 135.75 | EJ5: 136.75 | EK5: 137.75 | EL5: 138.75 | EM5: 139.75 | EN5: 140.75 | EO5: 141.75 | EP5: 142.75 | EQ5: 143.75 | ER5: 144.75 | ES5: 145.75 | ET5: 146.75 | EU5: 147.75 | EV5: 148.75 | EW5: 149.75 | EX5: 150.75 | EY5: 151.75 | EZ5: 152.75 | FA5: 153.75 | FB5: 154.75 | FC5: 155.75 | FD5: 156.75 | FE5: 157.75 | FF5: 158.75 | FG5: 159.75 | FH5: 160.75 | FI5: 161.75 | FJ5: 162.75 | FK5: 163.75 | FL5: 164.75 | FM5: 165.75 | FN5: 166.75 | FO5: 167.75 | FP5: 168.75 | FQ5: 169.75 | FR5: 170.75 | FS5: 171.75 | FT5: 172.75 | FU5: 173.75 | FV5: 174.75 | FW5: 175.75 | FX5: 176.75 | FY5: 177.75 | FZ5: 178.75 | GA5: 179.75 | GB5: 180.75 | GC5: 181.75 | GD5: 182.75 | GE5: 183.75 | GF5: 184.75 | GG5: 185.75 | GH5: 186.75 | GI5: 187.75 | GJ5: 188.75 | GK5: 189.75 | GL5: 190.75 | GM5: 191.75 | GN5: 192.75 | GO5: =IF(GO4<=$B26,GO4/$B26,GO4-$B26+1) -> 193.75 | GP5: 194.75 | GQ5: 195.75 | GR5: 196.75 | GS5: 197.75 | GT5: 198.75 | GU5: 199.75 | GV5: 200.75 | GW5: 201.75 | GX5: 202.75 | GY5: 203.75 | GZ5: 204.75 | HA5: 205.75 | HB5: 206.75 | HC5: 207.75 | HD5: 208.75 | HE5: 209.75 | HF5: 210.75 | HG5: 211.75 | HH5: 212.75 | HI5: 213.75
B6: per Interval | C6: Cp | D6: =B20*B25*B28/(B21*B22*B23*B26) ->  | E6: =IF(E5<=$B26,$B20*(1-EXP(-$B21*E5))/($B21*$B22*$B26)+ $D6*EXP(-$B21*E5),D6*EXP(-$B21*(1))) ->  | BQ6: =IF(BQ5<=$B26,$B20*(1-EXP(-$B21*BQ5))/($B21*$B22*$B26)+ $D6*EXP(-$B21*BQ5),BP6*EXP(-$B21*(1))) ->  | EC6: =IF(EC5<=$B26,$B20*(1-EXP(-$B21*EC5))/($B21*$B22*$B26)+ $D6*EXP(-$B21*EC5),EB6*EXP(-$B21*(1))) ->  | GO6: =IF(GO5<=$B26,$B20*(1-EXP(-$B21*GO5))/($B21*$B22*$B26)+ $D6*EXP(-$B21*GO5),GN6*EXP(-$B21*(1))) -> 
C7: AUC | E7: =(E6+D6)*(E5-D5)/2 ->  | F7: =(F6+E6)*(F5-E5)/2 ->  | G7: =(G6+F6)*(G5-F5)/2 ->  | BS7: =(BS6+BR6)*(BS5-BR5)/2 ->  | EE7: =(EE6+ED6)*(EE5-ED5)/2 ->  | GQ7: =(GQ6+GP6)*(GQ5-GP5)/2 -> 
C8: AUC for Interval | E8: =IF(E5<=$B27,E7,"") ->  | BQ8: =IF(BQ5<=$B27,BQ7,"") ->  | EC8: =IF(EC5<=$B27,EC7,"") ->  | GO8: =IF(GO5<=$B27,GO7,"") -> 
C9: Caverage from auc (auc/tau) | D9: =D10/B27 -> 
C10: AUC SS Sum of AUCs for Dosage Interval Single Interval from above | D10: =SUM(E8:DT8) -> 0
B11: works | C11: AUC SS per Day (above times 24/Tau) | D11: =D10*24/B27 -> 
C12: AUC Full Eliminated | D12: =SUM(E7:DT7) -> 
B13: works | C13: AUC(Dose/Vd*K) Single Dose Non SS | D13: =B20/(B21*B22) -> 
B14: works- 2nd best | C14: AUC(Dose/Vd*K) Single Dose Non SS * (24)/Tau | D14: =D13*(24)/B27 -> 
C15: Peak (D/Vd) | D15: =B20/B22 -> 
B16: Works 2nd best | C16: AUC =((Peak +Trough)*T'/2 + AUC(Cmax/k - Cmin/k))24/Tau | D16: =((B32+B33)/2*B26+(B32/B21-B33/B21))*24/B27 ->  | E16: These are same equation
A17: divison by zero error with continuous infusuion | B17: log trap | C17: AUC= ((Peak+Trough)*T'/2 +((max-min)(Tau-t')/ln(max/min))*24/Tau | D17: =((B32+B33)/2*B26+((B32-B33)*(B27-B26)/LN(B32/B33)))*24/B27 ->  | E17: These are same equation
B18: Works | C18: AUC if Constant infusion = sfD*24/(tau*cl) | D18: =IF(B27=B26,B20*(24/B27)/(B21*B22),"") -> 
C19: AUC=cave*Tau | D19: =D9*B27 -> 
A20: Dose | B20: =Calculations!C36 -> 0
A21: K | B21: =Calculations!C26 -> 
A22: Vd | B22: =Calculations!C22 -> 
A23: 1-exp(-ktau) | B23: =1-EXP(-B21*B27) -> 
A24: Accumulation Factor | B24: =1/B23 -> 
A25: 1-exp(-kt') | B25: =1-EXP(-B21*B26) -> 
A26: t' | B26: =Calculations!C16 -> 0.25
A27: Tau | B27: =Calculations!C34 -> 0
A28: exp(-K*(Tau-t') | B28: =EXP(-B21*(B27-B26)) -> 
A29: Post Dose exp(-k*time)
A30: Half life | B30: =0.693/B21 -> 
A31: 5 Half Lives | B31: =5*B30 -> 
A32: Peak SS | B32: =B20*B25/(B21*B22*B26*B23) -> 
A33: Trough SS | B33: =B32*EXP(-B21*(B27-B26)) -> 
A34: Peak SS Single Dose Diff | B34: =B32-B33 -> 
A35: Peak Single Dose | B35: =B20/B22 -> 
A36: Cavg =sfd/(kvTau) works best | B36: =B20/(B21*B22*B27) -> 
A37: Cavg =( Cmax+Cmin)/2 | B37: =(B32+B33)/2 -> 
A38: Time to Cavg from start of Infusion | B38: =(LN(B32/D9)/B21)+B26 -> 
A39: caverag/peak | B39: =B36/B32 -> 

Sheet Pediatric Info (hidden)
B1: Age | D1: Cl (l/kg/hr) | E1: VD (l/kg) | F1: K (hr-1) | G1: K= | H1: m*clcr + | I1: b
A2: Aminoglycosides | B2: <=4 weeks | C2: Neonates | D2: 0.05 | E2: 0.5 | F2: =D2/E2 -> 0.1 | H2: =F2*(1-0.0429)/120 -> 0.0007975833333 | I2: =F2*0.0429 -> 0.00429
B3: >4wk-1year | C3: Infant | D3: 0.1 | E3: 0.4 | F3: =D3/E3 -> 0.25 | H3: =F3*(1-0.0429)/120 -> 0.001993958333 | I3: =F3*0.0429 -> 0.010725
B4: >1<=13 | C4: Children | D4: 0.1 | E4: 0.35 | F4: =D4/E4 -> 0.2857142857 | H4: =F4*(1-0.0429)/120 -> 0.002278809524 | I4: =F4*0.0429 -> 0.01225714286
B5: >13<=18 | C5: Adolescents | D5: 0.09 | E5: 0.3 | F5: 0.3 | H5: 0.00239275 | I5: 0.01287
C6: Adult | D6: =E6*F6 -> 0.0815 | E6: 0.25 | F6: =0.0026*120 +0.014 -> 0.326 | H6: 0.002600121667 | I6: 0.0139854
B7: Reference Clinical Pharmacokinetics Pocket Reference John E. Murphy
C8: Assumes normal Clcr is 120 | D8: need to double check vaules for ages
C10: 2000 CDC Growth charts
C11: Age (Years) | D11: 2 | E11: 3 | F11: 4 | G11: 5 | H11: 6 | I11: 7 | J11: 8 | K11: 9 | L11: 10 | M11: 11 | N11: 12 | O11: 13 | P11: 14 | Q11: 15 | R11: 16 | S11: 17 | T11: 18
B12: Age 2-20 years | C12: Height (Centimeters) Females | D12: 86 | E12: 94.5 | F12: 101 | G12: 107.5 | H12: 115 | I12: 121.5 | J12: 127.5 | K12: 133 | L12: 138 | M12: 144 | N12: 151 | O12: 157 | P12: 160.5 | Q12: 162 | R12: 162.5 | S12: 163
C13: Weight (kg) Females | D13: 12 | E13: 13.8 | F13: 16 | G13: 18 | H13: 20 | I13: 23 | J13: 25.5 | K13: 29 | L13: 33 | M13: 37 | N13: 41.5 | O13: 46 | P13: 49.5 | Q13: 52 | R13: 54 | S13: 55
C14: Lener, Peck, Brown, Perlin Formula | D14: =(-77.55796+(6.93728*D12/2.54)-(0.171703*(D12/2.54)^2)+(0.001726*(D12/2.54)^3))/2.2 -> 12.49222896 | E14: =(-77.55796+(6.93728*E12/2.54)-(0.171703*(E12/2.54)^2)+(0.001726*(E12/2.54)^3))/2.2 -> 14.43551958 | F14: 16.05609441 | G14: 17.88023962 | H14: 20.34103271 | I14: 22.8715747 | J14: 25.60717563 | K14: 28.50641038 | L14: 31.50859477 | M14: 35.62411643 | N14: 41.21115991 | O14: 46.74437918 | P14: 50.31564866 | Q14: 51.92763682 | R14: 52.47608874 | S14: 53.03016177
C15: Height (centimeters) Males | D15: 87.5 | E15: 96 | F15: 102 | G15: 109 | H15: 115 | I15: 122 | J15: 127.5 | K15: 133.5 | L15: 138.5 | M15: 143.5 | N15: 149 | O15: 156 | P15: 163.5 | Q15: 170 | R15: 173.5 | S15: 175
C16: Weight (kg) Males | D16: 12.6 | E16: 14.3 | F16: 16 | G16: 18.5 | H16: 21 | I16: 23 | J16: 26 | K16: 28.5 | L16: 32 | M16: 36 | N16: 40.5 | O16: 45.5 | P16: 51 | Q16: 56 | R16: 61 | S16: 64.5
C17: Lener, Peck, Brown, Perlin Formula | D17: =(-59.6035+(5.2878*D15/2.54)-(0.123939*(D15/2.54)^2)+(0.00128936*(D15/2.54)^3))/2.2 -> 12.81111059 | E17: =(-59.6035+(5.2878*E15/2.54)-(0.123939*(E15/2.54)^2)+(0.00128936*(E15/2.54)^3))/2.2 -> 14.91729233 | F17: 16.53265046 | G17: 18.62176406 | H17: 20.64074631 | I17: 23.3276824 | J17: 25.73474805 | K17: 28.70326863 | L17: 31.48260342 | M17: 34.56833846 | N17: 38.34855286 | O17: 43.79920481 | P17: 50.51174637 | Q17: 57.12776799 | R17: 61.01925668 | S17: 62.76062554
C20: Clcr Schwartz Equation ml/min/1.73 | D20: 133 | E20: 133 | F20: 133 | G20: 133 | H20: 133 | I20: 133 | J20: 133 | K20: 133 | L20: 133 | M20: 133 | N20: 133 | O20: 140 | P20: 140 | Q20: 140 | R20: 140 | S20: 140
C21: < 2
B22: Scr males | C22: >=2-<13 | D22: =0.55*D15/D20 -> 0.3618421053 | E22: 0.3969924812 | F22: 0.4218045113 | G22: 0.4507518797 | H22: 0.4755639098 | I22: 0.5045112782 | J22: 0.5272556391 | K22: 0.5520676692 | L22: 0.5727443609 | M22: 0.5934210526 | N22: 0.6161654135
B23: Scr males | C23: >=13-<18 | O23: =O15*0.7/O20 -> 0.78 | P23: =P15*0.7/P20 -> 0.8175 | Q23: =Q15*0.7/Q20 -> 0.85 | R23: =R15*0.7/R20 -> 0.8675 | S23: =S15*0.7/S20 -> 0.875
C26: Clcr Schwartz Equation ml/min/1.73 | D26: 133 | E26: 133 | F26: 133 | G26: 133 | H26: 133 | I26: 133 | J26: 133 | K26: 133 | L26: 133 | M26: 133 | N26: 133 | O26: 126 | P26: 126 | Q26: 126 | R26: 126 | S26: 126
C27: < 2
B28: Scr females | C28: >=2-<13 | D28: =0.55*D12/D26 -> 0.3556390977 | E28: 0.3907894737 | F28: 0.4176691729 | G28: 0.4445488722 | H28: 0.4755639098 | I28: 0.502443609 | J28: 0.5272556391 | K28: 0.55 | L28: 0.5706766917 | M28: 0.5954887218 | N28: 0.6244360902
B29: Scr females | C29: >=13-<18 | O29: =O12*0.55/O26 -> 0.6853174603 | P29: =P12*0.55/P26 -> 0.7005952381 | Q29: =Q12*0.55/Q26 -> 0.7071428571 | R29: =R12*0.55/R26 -> 0.7093253968 | S29: =S12*0.55/S26 -> 0.7115079365
D38: ent=bicarb+dissolved CO2) | E38: Cordblood | F38: 15-20 | G38: mEq/l
E39: Child | F39: 18-27 | G39: mEq/l
D40: Creatinine | E40: Premature | F40: 0.3-1.o | G40: mg/dL
E41: Neonates | F41: 0.2-0.9 | G41: mg/dL
D42: Note: There are gender-specific ranges only for ages 16 years and older. | E42: 2-12 months | F42: 0.2-0.4 | G42: mg/dL
E43: 1-2 years | F43: 0.2-0.5 | G43: mg/dL
E44: 3-4 years | F44: 0.3-0.7 | G44: mg/dL
E45: 5-6 years | F45: 0.3-0.7 | G45: mg/dL
E46: 7-8 years | F46: 0.2-0.6 | G46: mg/dL
E47: 9-10 years | F47: 0.3-0.7 | G47: mg/dL
E48: 11-12 years | F48: 0.3-0.9 | G48: mg/dL
E49: 13-15 years | F49: 0.4-0.9 | G49: mg/dL
E51: Males 16 years + | F51: 0.6-1.2 | G51: mg/dL
E52: Females 16 years+ | F52: 0.5-1.0 | G52: mg/dL
D53: Glucose | E53: 0-1 month | F53: 40-99 | G53: mg/dL
E54: 1 month-adult | F54: 65-99
D56: http://www.healthcare.uiowa.edu/path_handbook/Appendix/Heme/PEDIATRIC_NORMALS.html

Sheet Vanco (hidden)
B1: Input Last Name of Patient | G1: Adult and Pediatric Vancomycin and Aminoglycoside Dosing
B2: Input First Name of Patient | G2: Data Fitting of Steady State or Non Steady State Dosing History and Serum Levels
B3: Input Medical Record Number | G3: Using Standard One Compartment Pharmacokinetic Equations
B4: Input Age (Years) | G4: Marshall Pierce Pharm.D.
B5: Select Height Units (Drop Down Box) | C5: Inches | D5: Select Treatment Diagnosis (DB) | E5: Cellulitis
B6: Input Height | D6: =IF(C7>84,"Verify that correct height units are being used","") -> 
B7: Height Used (Inches) | C7: =IF(C5="Centimeters",C6/2.54,C6) -> 0 | D7: 0 | E7: Left Arm Amputation | F7: Right Arm Amputation | G7: Paralysis
B8: Select Weight Units (Drop Box Box) | C8: Kgs | E8: Not Applicable | F8: Not Applicable | G8: Not Applicable
B9: Input Weight | E9: Not Applicable | F9: Not Applicable | G9: Not Applicable
B10: Weight Used (kgs) | C10: =IF(C8="Lbs",C9/2.2,C9) -> 0 | D10: 0 | E10: Left Leg Amputation | F10: Right Leg Amputation | G10: Creatinine Multiplier | I10: Minimum Creatinine
B11: Select Sex (Drop Down Box) | C11: Male | D11: Male | E11: Not Applicable | F11: Not Applicable | G11: 1 | I11: =IF(C4>=18,IF(OR(G8="Functional",G8="Paraplegia",G8="Quadraplegia"),0.5,0.7)) -> FALSE
B12: Input Most Recent Actual Serum Creatinine (mg/dl) | E12: Not Applicable | F12: Not Applicable
B13: Input Previous Actual Serum Creatinine (mg/dl) | E13: Malnutrition
B14: Time Between Serum Creatinines (hours) | E14: Not Applicable
B15: Select Drug (Drop Down Box) | C15: Vancomycin | D15: Vancomycin | E15: Not Applicable
B16: Input Infusion Period (hours) | D16: =IF(C16>3, "Verify that infusion period is correct","") -> 
A17: Hide | B17: Lean Body Weight < 18 or 48 inches | C17: =IF(C7<22,C10,IF(OR(C4<18,C7<48),IF(C11="Male",(-59.6035+(5.2878*C7)-(0.123939*C7^2)+(0.00128936*C7^3))/2.2,(-77.55796+(6.93728*C7)-(0.171703*C7^2)+(0.001726*C7^3))/2.2))) -> 0
A18: Hide | B18: Lean Body Weight Calculated | C18: =IF(OR(C4<18,C7<48),C17,IF(C11="Female", (C7-60)*2.3+45.5,(C7-60)*2.3+50)) -> 0
B19: Calculated Lean Body Weight (kg) | C19: =IF(C18<=C10,C18,C10) -> 0
A20: Hide | B20: Dosing Weight Aminoglycosides | C20: =IF(C19<C10,(C10-C19)*0.4+C19,C10) -> 0
B21: Calculated Dosing Weight (kg) | C21: =IF(C15="Vancomycin",C10,C20) -> 0
B22: Calculated Vd (Liters) | C22: =IF(C15="Vancomycin",0.65*C21,IF(C4<=13,0.35*C21,IF(C4<=18,0.3*C21,0.25*C21))) -> 0 | D22: =IF(OR(C12<>D12,C13<>D13,C14<>D14,E9<>E8,F9<>F8,G9<>G8,E12<>E11,F12<>F11,E15<>E14,C4<>D4,C7<>D7,C10<>D10,C11<>D11,C15<>D15),"Remember to press the Calculated Creatinine Clearance Button","") -> 
B23: Body Surface Area Calculated Meters2 | C23: =(C10^0.425)*((C7*2.54)^0.725)*71.84/10000 -> 0
B24: Calculated Creatinine Clearance (ml/min) | C24: =CreatinineClearanceCalculation!E19 -> 0
B25: Calculated T1/2 (Hours) for Creatinine | C25: =IF(LEN(D22)<>0,"",CreatinineClearanceCalculation!E20) ->  | D25: Solver Based Calulations | E25: Volume of Distribution (Liters)
B26: Calc. Eliminaton Rate Constant (hr-1) Drug | C26: =IF($C15="Vancomycin",0.00107*$C24*(1.73/$C23)+0.005216005,IF(C4<=13,0.002279*C24+0.012257,IF(C4<=18,0.002393*C24+0.01287,0.0026*$C24+0.014))) ->  | D26: =C26 ->  | E26: =C22 -> 0
B27: Calculated Half-Life (Hours) for Drug | C27: =0.693/C26 ->  | D27: =0.693/D26 -> 
A28: Hide | B28: Loading Dose Aminoglycosides | C28: =IF(C24>=28.6,IF(C15="Amikacin",60*C$22*C$26*C$16/(1-EXP(-C$26*C$16)),20*C22*C26*C16/(1-EXP(-C26*C16))),IF(C15="Amikacin", 30*C22*C26*C16/(1-EXP(-C26*C16)),8*C22*C26*C16/(1-EXP(-C26*C16)))) -> 
A29: Hide | B29: Loading Dose Vancomycin | C29: =30*C$22*C$26*C$16/(1-EXP(-C$26*C$16)) ->  | E29: Hours to 15 mcg/ml from start LD | F29: =LN(30/15)/C26+2 ->  | G29: Hours to 20 mcg/ml | H29: =LN(30/20)/C26+C16 -> 
B30: Calculated Loading Dose Calculated (mg) | C30: =IF(LEN(D22)<>0,"",IF(C15="Vancomycin",C29,IF(C26<=LN(20/0.3)/47.5,C28,"Pulse Dosing"))) ->  | E30: =IFERROR(IF(C15="Vancomycin",IF(C30>3000,"Maximum Vancomycin Loading Dose is 3 grams",""),""),"") -> 
A31: Hide | B31: Aminoglycoside Interval Gentamicin | C31: =IF((((LN(20/0.3))/C26)+0.5)<24,24,IF((((LN(20/0.3))/C26)+0.5)<36,36,IF((((LN(20/0.3))/C26)+0.5)<48,48,((((LN(6/1))/C26))+0.5)))) ->  | D31: =IF((((LN(20/0.3))/D26)+0.5)<24,24,IF((((LN(20/0.3))/D26)+0.5)<36,36,IF((((LN(20/0.3))/D26)+0.5)<48,48,((((LN(6/1))/D26))+0.5)))) -> 
A32: Hide | B32: Aminoglycoside Interval Amikacin | C32: =IF((((LN(60/0.9))/C26)+0.5)<24,24,IF((((LN(60/0.9))/C26)+0.5)<36,36,IF((((LN(60/0.9))/C26)+0.5)<48,48,((((LN(30/3))/C26))+0.5)))) ->  | D32: =IF((((LN(60/0.9))/D26)+0.5)<24,24,IF((((LN(60/0.9))/D26)+0.5)<36,36,IF((((LN(60/0.9))/D26)+0.5)<48,48,((((LN(30/3))/D26))+0.5)))) -> 
B33: Calculated Dosage Interval (Hours) | C33: =IF(LEN(D22)<>0,"",IF($C15="Vancomycin",(((LN(30/15))/C26)+2),IF($C15="Amikacin",C32,C31))) ->  | D33: =IF($C15="Vancomycin",(((LN(40/15))/D26)+2),IF($C15="Amikacin",D32,D31)) -> 
B34: Input Rounded Dosage Interval (Hours) | D34: =C34 -> 0 | E34: =IF(C34<>"",IF(D26<>C26,IF(D36*24/D34>1.5*(C36*24/C34),"Total Daily Dose should not be increased by more than 50%.",""),""),"") ->  | G34: =IF(C34>168,"Verify dosage Interval entered","") -> 
B35: Calculated Maintenance Dose (mg) | C35: 0 | D35: 0 | G35: Maintenance Dose
B36: Input Rounded MaintenanceDose (mg) | D36: =C36 -> 0 | E36: =IF($C36<>"",IF($C15="Vancomycin",IF(C36/$C21>20,"The entered maintenance dose, C36, is too large: "&ROUND(C36/$C21,1)&" mg/kg",""),IF(AND($C15="Gentamicin/Tobramycin",C26>LN(20/0.3)/47.5),IF(ABS(1-(C36/($C21*5)))>=0.1,"The entered dose, C36, is >= 10% higher or lower than calculated maintenance dose. ",""),IF(AND($C15="Amikacin",C26>LN(20/0.3)/47.5),IF(ABS(1-(C36/($C21*15)))>=0.1,"The entered dose, C36, is >=10% higher or lower than calculated maintenance dose. ",""),""))),"") ->  | G36: Dose (mg/kg) | H36: =D36/C21 ->  | I36: =IF(ISERROR(H36),"",IF(H36>=18,"A lower dose, 10-17.5 mg/kg, is recommeneded","")) -> 
B37: Calculated Peak (mcg/ml) | C37: =IF(LEN(D22)<>0,"",C36*(1-EXP(-C26*$C16))/($C22*C26*$C16*(1-EXP(-C26*C34)))) ->  | D37: =D36*(1-EXP(-D26*$C16))/($E26*D26*$C16*(1-EXP(-D26*D34))) ->  | E37: =IF($C$36<>"",IF($C$15="Vancomycin",IF($D$36/$C$21>20,"The entered maintenance dose, D36, is too large: "&ROUND($D$36/$C$21,1)&" mg/kg",""),IF(AND($C$15="Gentamicin/Tobramycin",$D$26>LN(20/0.3)/47.5),IF(ABS(1-($D$36/($C$21*5)))>=0.1,"The entered dose, D36, is >= 10% higher or lower than calculated maintenance dose. ",""),IF(AND($C$15="Amikacin",$D$26>LN(20/0.3)/47.5),IF(ABS(1-($D$36/($C$21*15)))>=0.1,"The entered dose, D36, is >=10% higher or lower than calculated maintenance dose. ",""),""))),"") ->  | G37: Total Daily Dose | H37: =D36*24/D34 -> 
B38: Calculated Trough (mcg/ml) | C38: =IF(LEN(D22)<>0,"",C37*EXP(-C26*(C34-$C16))) ->  | D38: =D37*EXP(-D26*(D34-$C16)) -> 
B39: AUC (mg/hour/liter per day) | C39: =IF(LEN(D22)<>0,"",IF(C37<>C38,(C37+C38)*(C16/2)*24/C34+(C37-C38)*24/(C26*C34),C36*24/(C26*C22*C34))) ->  | D39: =(D37+D38)*C16/2*24/D34+(D37-D38)*24/(D26*D34) ->  | E39: =IF(ISERROR(C39),"",IF(C39>600,"AUC is too high","")) -> 
E40: Dose 1 after starting level | H40: Dose 2 after starting level | K40: Dose 3 after starting level | N40: Dose 4 after starting level | Q40: Dose 5 after starting level
D41: Dose (mg) | G41: Dose (mg) | J41: Dose (mg) | M41: Dose (mg) | P41: Dose (mg)
D42: Dose Date &Time | G42: Dose Date &Time | J42: Dose Date &Time | M42: Dose Date &Time | P42: Dose Date &Time
B43: Current Date | C43: 2019-08-10T07:27:20
B44: Date Therapy Initiated (Month/Day/Year)
C46: Starting Level Before Dose 1 | E46: Serum Levels (mcg/ml) | H46: Serum Levels (mcg/ml) | K46: Serum Levels (mcg/ml) | N46: Serum Levels (mcg/ml) | Q46: Serum Levels (mcg/ml)
C47: Starting Level Date &Time | E47: Serum Level Date &Time | H47: Serum Level Date &Time | K47: Serum Level Date &Time | N47: Serum Level Date &Time | Q47: Serum Level Date &Time
E49: Trough Before Dose 1 | H49: Trough Before Dose 2 | K49: Trough Before Dose 3 | N49: Trough Before Dose 4 | Q49: Trough Before Dose 5
D50: Expected Levels (mcg/ml) | E50: =D46*EXP(-$D26*(E42-$D47)*24) ->  | F50: =$D46*EXP(-$D26*(F47-$D47)*24)+($E41*(1-EXP(-$D26*$C16))*(EXP(-$D26*(((F47-$E42)*24)-$C16)))/($E26*$C16*$D26)) ->  | G50: =$D46*EXP(-$D26*(G47-$D47)*24)+($E41*(1-EXP(-$D26*$C16))*(EXP(-$D26*(((G47-$E42)*24)-$C16)))/($E26*$C16*$D26)) ->  | H50: =$D46*EXP(-$D26*(H42-$D47)*24)+($E41*(1-EXP(-$D26*$C16))*(EXP(-$D26*(((H42-$E42)*24)-$C16)))/($E26*$C16*$D26)) ->  | I50: =$H50*EXP(-$D26*(I47-$H42)*24) + ($H41*(EXP(-$D26*(((I47-$H42)*24)-$C16)))*(1-EXP(-$D26*$C16))/($E26*$D26*$C16)) ->  | J50: =$H50*EXP(-$D26*(J47-$H42)*24) + ($H41*(EXP(-$D26*(((J47-$H42)*24)-$C16)))*(1-EXP(-$D26*$C16))/($E26*$D26*$C16)) ->  | K50: =$H50*EXP(-$D26*(K42-$H42)*24) + ($H41*(EXP(-$D26*(((K42-$H42)*24)-$C16)))*(1-EXP(-$D26*$C16))/($E26*$D26*$C16)) ->  | L50: =$K50*EXP(-$D26*(L47-$K42)*24) + ($K41*(EXP(-$D26*(((L47-$K42)*24)-$C16)))*(1-EXP(-$D26*$C16))/($E26*$D26*$C16)) ->  | M50: =$K50*EXP(-$D26*(M47-$K42)*24) + ($K41*(EXP(-$D26*(((M47-$K42)*24)-$C16)))*(1-EXP(-$D26*$C16))/($E26*$D26*$C16)) ->  | N50: =$K50*EXP(-$D26*(N42-$K42)*24) + ($K41*(EXP(-$D26*(((N42-$K42)*24)-$C16)))*(1-EXP(-$D26*$C16))/($E26*$D26*$C16)) ->  | O50: =$N50*EXP(-$D26*(O47-$N42)*24) + ($N41*(EXP(-$D26*(((O47-$N42)*24)-$C16)))*(1-EXP(-$D26*$C16))/($E26*$D26*$C16)) ->  | P50: =$N50*EXP(-$D26*(P47-$N42)*24) + ($N41*(EXP(-$D26*(((P47-$N42)*24)-$C16)))*(1-EXP(-$D26*$C16))/($E26*$D26*$C16)) ->  | Q50: =$N50*EXP(-$D26*(Q42-$N42)*24) + ($N41*(EXP(-$D26*(((Q42-$N42)*24)-$C16)))*(1-EXP(-$D26*$C16))/($E26*$D26*$C16)) ->  | R50: =$Q50*EXP(-$D26*(R47-$Q42)*24) + ($Q41*(EXP(-$D26*(((R47-$Q42)*24)-$C16)))*(1-EXP(-$D26*$C16))/($E26*$D26*$C16)) ->  | S50: =$Q50*EXP(-$D26*(S47-$Q42)*24) + ($Q41*(EXP(-$D26*(((S47-$Q42)*24)-$C16)))*(1-EXP(-$D26*$C16))/($E26*$D26*$C16)) -> 
E52: Square of Errors | F52: =IF(ISNUMBER(F50),(F50-F46)^2,"") ->  | G52: =IF(ISNUMBER(G50),(G50-G46)^2,"") ->  | I52: =IF(ISNUMBER(I50),(I50-I46)^2,"") ->  | J52: =IF(ISNUMBER(J50),(J50-J46)^2,"") ->  | L52: =IF(ISNUMBER(L50),(L50-L46)^2,"") ->  | M52: =IF(ISNUMBER(M50),(M50-M46)^2,"") ->  | O52: =IF(ISNUMBER(O50),(O50-O46)^2,"") ->  | P52: =IF(ISNUMBER(P50),(P50-P46)^2,"") ->  | R52: =IF(ISNUMBER(R50),(R50-R46)^2,"") ->  | S52: =IF(ISNUMBER(S50),(S50-S46)^2,"") -> 
E53: Sum of Square of Errors | F53: =SUM(F52:S52) -> 0
B55: Marshall Pierce PharmD
B56: No Warranties Are Expressed or Implied.
B59: Instructions For Use
B60: 1. Enter the data required in the blue colored cells in column C, (C1-C16).
B61: 2. Select the patients treatment condition in cell E5.
B62: 3. Select the values in cells E8 through G8, E11 through F11, and E14 if the patient has amputation(s), paralysis, or malnutrition.
B63: 4. Press the "Calculate Creatinine Clearnance or Dose" button. This will calculate the patient's creatinine clearance and suggested dose and frequency.
B64: 5. Enter a rounded dosage interval and rounded dose in cells C34 and C36 respectively.
B65: 6. Population based parameters (elimination rate constant and volume of distribution) are used to calculate the peak and trough in C37 and C38 respectively.
B66: 7. Change the values in C34 and C36 to obtain your desired predicted peak and trough in cells C37 and C38.
B68: Population Based Equations Using Standard One Compartment Pharmacokinetic Equations
B69: Vancomycin
B70: Volume of Distribution (liters) = 0.65 l/kg of total body weight
B71: Elimination Rate Constant (1/hours) = 0.00107 * Creatinine ClearanceIBW * 1.73/BSA + 0.0052
B72: Aminoglycosides
B73: Volume of Distribution (liters) = 0.25 l/kg of adjusted body weight
B74: Elimination Rate Constant (1/hours) = 0.026 * Creatinine ClearanceIBW + 0.014
B75: Ideal body weight (IBW(kg)) Adults
B76: Males(kg) = 50(kg) + 2.3(kg) * (height in inches - 60)
B77: Females(kg) = 45.5(kg) + 2.3(kg) * (height in inches - 60)
B78: Lean Body Weight for Children or height < 48 inches (Peck Formula)
B79: Female < 18 years = -77.55796 + (6.93728 * height in inches) -(0.171703 * Height2) + (0.001726* Height3)
B80: Male < 18 years = -59.6035 + (5.2878 * Height) - (0.123939 * Height2) + 0.00128936 * Height3)
B81: If height < 22 inches, lean weight = total weight
B82: Adjusted body weight, aminoglycosides only, if actual weight > IBW.
B83: Adjusted Body Weight(kg) = LBW(kg) + 0.4 * (Actual Weight(kg) – IBW(kg))
B84: Creatinine Clearance Equations
B85: Adults Cockcroft Gault Equation
B86: Males(ml/min) = (140-age) * ( Use Ideal Body Weight(kg) or actual weight if less than IBW(kg)) / (Serum Creatinine *72)
B87: Females(ml/mn): above x 0.85
B88: Pediatic Schartz Equation
B89: ClCr(ml/min/1.73 m2) = Factor* HeightCentimeters / Serum Creatinine
B90: Factor: 0.45 < 1 year, 0.55 1-12 years, > 12 years 0.55 female, > 12 years males 0.7
B91: Amputation and Paralysis Serum Creatiine Multiplication Factors
B92: Entire Leg Amputation (1.2269), AKA (1.1764), BKA (1.0638), Entire Arm Amputation (1.0695), AEA (1.0526), BEA (1.0309), Functional Palegia (1.4), Paraplegia (1.4), Quadraplegia(1.6)
B93: Minimal Serum Creatinine: 0.5 mg/dL in patients with functional, para or quadraplegia, or malnutrition; 0.7 in other adults.
B94: Data Fitting: The program employees non steady state one compartment equations and uses the method of superposition to determine the expected level(s) from the input dosing history,
B95: starting serum level, and and estimated pharmacokinetic parameters.
B96: CpT = Cp0e(-K(T-to)) + [D1(1-e(-KT’))*e(-K(T-Td1-T’))/(VKT’)] + [D2(1-e(-KT’))*e(-K(T-Td2-T’))/(VKT’)]…….
B97: The expected levels, displayed in the data fitting section, are calculated using the population elimination rate constant (C26) and volume of distribtution (C22) initially.
B98: Once the data (dosing and serum levels) is fit the patient specific values of elimination rate constant and volume of distribution, D26 and E26, are used.
B100: Objective Function to Minimize
B101: Sum of the Square of Errors = (Predicted Level1 – Actual Level1)2 + (Predicted Level2 – Actual Level2)2 for all input levels
B103: Analyzing steady state levels using a trough drawn after a know steady state dose (this is our usual practice)
B104: 8. Steps 1-7 must be completed, enter the current frequency and dose in C34 and C36.
B105: 9. Enter the date therapy was started in cell C44.
B106: 10. Enter the steady state trough in cell G46 and the date and time of the trough in G47.
B107: 11. Enter the date and time of the dose which was given before the trough in E42.
B108: 12. Press the "Assume Steady State: Trough drawn after dose 1". This will copy the entered trough to cell D46, place the calculated time of the predose trough in cell D47, and the dose to E41.
B109: This is for your convience, if you choose to you can enter the data manually without pressing the "Assume Steady State" button.
B110: By placing the same trough around a single dose you are creating steady state conditions. This is the definition of steady state, levels are unchange dose to dose.
B111: 13. Press "Fit Data (Elimination Rate Constant Optimization)" button. The program will determine the elimination rate constant that miniminzes the difference between the actual and predicted level.
B112: 14. The calculated patient specific elimination rate constant is displayed in cell D26 after data fitting.
B113: 15. The predicted state state levels using the patient specific elimination rate constant are displayed in cells D37 and D38 respectively.
B114: 16. You may adjust the dosage frequency and dose in D34 and D36 to obtain your desired levels.
B116: Steady State Levels with the trough drawn post dose past the time the next dose was due as next dose was held, the dose was given late, or a random level was ordered.
B117: Trough at time of Dose1 displayed in E50 = Trough PredoseD46*Exp(-K*(Time of Dose1 E42- Time of Predose Trough D47)*24)
B118: The trough in D46 will show a time in D47 that is after the time of the dose1 in E42, but the equation above back extrapolates the calculated trough displayed in E50 to the time of Dose 1.
B119: The programs calculations are correct though the displayed values in D46 and D47 look incorrect. The value in E50 is the value used in the further calculations.
B121: Analyzing steady state levels using a trough drawn before a known steady state dose. This will be rarely use, but is included for flexible.
B122: 8. Steps 1-7 must be completed, enter the current frequency and dose in C34 and C36.
B123: 9. Enter the date therapy was started in cell C44.
B124: 10. Enter the steady state trough in cell D46 and the date and time of the trough in D47.
B125: 11. Enter the date and time of the dose which was given in E42.
B126: 12. Press the "Assume Steady State: Trough drawn before dose 1". This will copy the entered trough to cell G46, place the calculated time of the post dose trough in cell G47, and the dose to E41.
B127: This is for your convience, if you choose to you can enter the data manually without pressing the "Assume Steady State" button.
B128: By placing the same trough around a single dose you are creating steady state conditions. This is the definition of steady state, levels are unchanging dose to dose.
B129: 13. Press "Fit Data (Elimination Rate Constant Optimization)" button. The program will determine the elimination rate constant that miniminzes the difference between the actual and predicted level.
B130: 14.The calculated patient specific elimination rate constant is displayed in cell D26 after data fitting.
B131: 15. The predicted state state levels using the patient specific elimination rate constant are displayed in cells D37 and D38 respectively.
B132: 16. You may adjust the dosage frequency and dose in D34 and D36 to obtain your desired levels.
B134: Analyzing steady state levels using a trough drawn before a known steady state dose and a peak after the same dose (Traditional Dosing for Aminoglycosides)
B135: 8. Steps 1-7 must be completed, enter the current frequency and dose in C34 and C36.
B136: 9. Enter the date therapy was started in cell C44.
B137: 10. Enter the steady state trough in cell D46 and the date and time of the trough in D47.
B138: 11. Enter the steady state peak in cell F46 and time of the peak in F47.
B139: 12. Enter the date and time of the dose which was given in E42.
B140: 13. Press the "Assume Steady State: Trough drawn before dose 1". This will copy the entered trough to cell G46, place the calculated time of the post dose trough in cell G47, and the dose to E41.
B141: This is for your convience, if you choose to you can enter the data manually without pressing the "Assume Steady State" button.
B142: By placing the same trough around a single dose you are creating steady state conditions. This is the definition of steady state.
B143: 14. Press "Fit Data (Elimination Rate Constant & Vd Optimization)" button. The program will determine the elimination rate constant and volume of distribution that miniminzes the difference
B144: between the actual and predicted levels.
B145: 15. The calculated patient specific elimination rate constant is displayed in cell D26 and volume of distribution in cell E26 after data fitting.
B146: 16. The predicted state state levels using the patient specific K and Vd are displayed in cells D37 and D38 respectively.
B147: 17. You may adjust the dosage frequency and dose in D34 and D36 to obtain your desired levels.
B149: Analyzing Non Steady State Levels
B150: 8. Steps 1-7 must be completed, enter the current frequency and dose in C34 and C36.
B151: 9. Enter the date therapy was started in cell C44.
B152: 10. Enter a starting level and time of the level in cells D46 and D47 respectively. This level may be 0 if no drug is on board or any known level before the doses you wish to analyze.
B153: 11. Enter all doses and the dates and times given from the time of the starting level through the last dose administered before the last level to be analyzed in chronological order,
B154: oldest to most recent left to right. The doses are numbered 1-5, chronological after the starting level.
B155: 12. Enter all levels and the times drawn to be analyzed in chronlogical order, oldest to most recent left to right.
B156: 13. Press the appropriate data fitting button, "Fit Data (Elimination Rate Constant Optimization)" if only troughs have been drawn, and
B157: "Fit Data (Elimination Rate Constant & Vd Optimization) if a peak(s) and trough(s) have been drawn.
B158: 14. The calculated patient specific elimination rate constant is displayed in cell D26 and volume of distribution in cell E26 after data fitting.
B159: 15. The predicted state state levels using the patient specific K and Vd are displayed in cells D37 and D38 respectively.
B160: 16. You may adjust the dosage frequency and dose in D34 and D36 to obtain your desired levels.
B163: When to assume levels are Non Steady State Levels
B164: 1. If you are ordering levels before 5 half lives of have passed from the start of therapy.
B165: 2. If you order levels after the 1st maintenance dose with or with out a loading dose.
B166: 3. The patients doses or dosage intervals are not consistent.
B168: Note: the predicted levels for input dosage regimens in column C (population) and D (patient specific) are independent from one another after data fitting.
B170: Creatinine Clearance Calculation
B171: How is creatinine clearance calculated when the serum creatinines is changing?
B172: Most creatinine clearance equations assume stable renal function.
B173: Creatinine clearance individualized (Clcr) Cockcroft Gault equation:
B174: Males(ml/min) = (140-age) * ( Use Ideal Body Weight(kg) or actual weight if less than IBW(kg)) / (Serum Creatinine *72)
B175: Females(ml/mn): above x 0.85
B176: In the simplified form: Creatinine Clearance = Creatinine rate of production / Serum Creatinine
B177: Rate of production is constant for a patient and is determined by age, height, weight and sex. The rate of production is built
B178: into the Cockcroft Gault equation and other creatinine clearanace equations. When renal function has changed the following equation may be used to
B179: calculate creatinine clearance before steady state serum creatinine levels are achieved. This is the most accurate method of
B180: numerous published equations. An iterative method is used to determine clearnace as there is no direct solution to the equation.
B181: Serum Creatinine2 = Serum Creatinine1 * e(-KT) + Rate of Production (1-e(-KT)) / Clearance of Creatinine
B182: T is the time between serum two known creatinines (creatinine1 and creatinine2).
B183: K is the elimination rate constant for creatinine.
B184: This equation accounts for the elimination of creatinine already present and the fraction of steady state achieved during the
B185: time between the creatinines.
B186: Assumptions of the non steady state equation:
B187: All of the change in renal function has occurred at or before the time of the oldest creatinine (creatinine1).
B188: The change in creatinines is due to renal function changes and is not due to tissue destruction or hydration changes.
B189: The serum creatinines are accurately determined and the time between them is known.
B191: Data Storage
B192: The program stores patient demographic information, current dose and frequency, along with calculated values including population and
B193: patient specfic elimination rate constant and volume of distribution in a separate file. The file is password protected and the data is hidden.
B194: This allows analysis of predicted versus actual levels to optimize the parameters used in the program.
B196: Program Requirements
B197: Excel 2010
B198: A shared drive with a copies of the program in separate folders if multiple users will be dosing patients at the same time or the program will have to be installed on multiple computers.
B199: A copy of the program should be placed in individual folders on the shared drive for each functional area of use along with the patient data file.
B201: References
B202: 1. Chiou WL, Hsu FH. A new simple and rapid method to monitor the renal function based on pharmacokinetic consideration of endogeneous creatinine. Res Commun Chem Pathol Pharmacol. 1975 Feb;10(2):315-30. PubMed PMID: 1153839.
B203: 2. Cockcroft DW, Gault MH. Prediction of creatinine clearance from serum creatinine. Nephron. 1976;16(1):31-41. PubMed PMID: 1244564.
B204: 3. Devine BJ. Gentamicin therapy. Drug Intell Clin Pharm. 1974;8:650–655.
B205: 4. Lau AH, Berk SI, Prosser T, Stonich T. Estimation of creatinine clearance in malnourished patients. Clin Pharm. 1988 Jan;7(1):62-5. PubMed PMID: 3126017.
B206: 5. Gilbaldi M, Perrier D Pharmacokinetics Marcel Kekker, Inc New York 1975
B207: 6. Winter, Michael E. Basic Clinical Pharmacokintics 2nd Edition Applied Therapeutics Inc 1988
B208: 7. Murphy John E, Clinical Pharmacokinetics Third Edition American Society of Health Systems Pharmacists, Inc 2005
B209: 8. Schwartz GJ, Haycock GB, Edelmann CM, et al. A simple estimate of glomerular filtration rate in children derived from body length and plasma creatinine. Pediatrics. 1976;58:259-63
B210: 9. Schwartz GJ, Feld LG, Langford DJ. A simple estimate of glomerular fultration rate in full-term infants during the first year of life. Pediatrics 1984;104:849-54
B211: 10. Chow MS, Schweizer R. Estimation of renal creatinine clearance in patients with unstable serum creatinine concentrations: comparison of multiple methods. Drug Intell Clin Pharm. 1985 May;19(5):385-90. PubMed PMID: 4006730.
B212: 11. Lener, Peck, Brown, Perlin. One compartment forecaster reference materials. Technical Report Number 10. Division of Clinical Pharmacology Uniformed Service university of Health Science Bethesda, Maryland
B213: 12. University of Virginia Health System Adult Enteral and Parenteral Nutrition Handbook

Sheet Amino (hidden)
B1: Input Last Name of Patient | G1: Adult and Pediatric Vancomycin and Aminoglycoside Dosing
B2: Input First Name of Patient | G2: Data Fitting of Steady State or Non Steady State Dosing History and Serum Levels
B3: Input Medical Record Number | G3: Using Standard One Compartment Pharmacokinetic Equations
B4: Input Age (Years) | G4: Marshall Pierce Pharm.D.
B5: Select Height Units (Drop Down Box) | C5: Inches | D5: Select Treatment Diagnosis (DB) | E5: Cellulitis
B6: Input Height | D6: =IF(C7>84,"Verify that correct height units are being used","") -> 
B7: Height Used (Inches) | C7: =IF(C5="Centimeters",C6/2.54,C6) -> 0 | D7: 0 | E7: Left Arm Amputation | F7: Right Arm Amputation | G7: Paralysis
B8: Select Weight Units (Drop Box Box) | C8: Kgs | E8: Not Applicable | F8: Not Applicable | G8: Not Applicable
B9: Input Weight | E9: Not Applicable | F9: Not Applicable | G9: Not Applicable
B10: Weight Used (kgs) | C10: =IF(C8="Lbs",C9/2.2,C9) -> 0 | D10: 0 | E10: Left Leg Amputation | F10: Right Leg Amputation | G10: Creatinine Multiplier | I10: Minimum Creatinine
B11: Select Sex (Drop Down Box) | C11: Male | D11: Male | E11: Not Applicable | F11: Not Applicable | G11: 1 | I11: =IF(C4>=18,IF(OR(G8="Functional",G8="Paraplegia",G8="Quadraplegia"),0.5,0.7)) -> FALSE
B12: Input Most Recent Actual Serum Creatinine (mg/dl) | E12: Not Applicable | F12: Not Applicable
B13: Input Previous Actual Serum Creatinine (mg/dl) | E13: Malnutrition
B14: Time Between Serum Creatinines (hours) | E14: Not Applicable
B15: Select Drug (Drop Down Box) | C15: Vancomycin | D15: Vancomycin | E15: Not Applicable
B16: Input Infusion Period (hours) | D16: =IF(C16>3, "Verify that infusion period is correct","") -> 
A17: Hide | B17: Lean Body Weight < 18 or 48 inches | C17: =IF(C7<22,C10,IF(OR(C4<18,C7<48),IF(C11="Male",(-59.6035+(5.2878*C7)-(0.123939*C7^2)+(0.00128936*C7^3))/2.2,(-77.55796+(6.93728*C7)-(0.171703*C7^2)+(0.001726*C7^3))/2.2))) -> 0
A18: Hide | B18: Lean Body Weight Calculated | C18: =IF(OR(C4<18,C7<48),C17,IF(C11="Female", (C7-60)*2.3+45.5,(C7-60)*2.3+50)) -> 0
B19: Calculated Lean Body Weight (kg) | C19: =IF(C18<=C10,C18,C10) -> 0
A20: Hide | B20: Dosing Weight Aminoglycosides | C20: =IF(C19<C10,(C10-C19)*0.4+C19,C10) -> 0
B21: Calculated Dosing Weight (kg) | C21: =IF(C15="Vancomycin",C10,C20) -> 0
B22: Calculated Vd (Liters) | C22: =IF(C15="Vancomycin",0.65*C21,IF(C4<=13,0.35*C21,IF(C4<=18,0.3*C21,0.25*C21))) -> 0 | D22: =IF(OR(C12<>D12,C13<>D13,C14<>D14,E9<>E8,F9<>F8,G9<>G8,E12<>E11,F12<>F11,E15<>E14,C4<>D4,C7<>D7,C10<>D10,C11<>D11,C15<>D15),"Remember to press the Calculated Creatinine Clearance Button","") -> 
B23: Body Surface Area Calculated Meters2 | C23: =(C10^0.425)*((C7*2.54)^0.725)*71.84/10000 -> 0
B24: Calculated Creatinine Clearance (ml/min) | C24: =CreatinineClearanceCalculation!E19 -> 0
B25: Calculated T1/2 (Hours) for Creatinine | C25: =IF(LEN(D22)<>0,"",CreatinineClearanceCalculation!E20) ->  | D25: Solver Based Calulations | E25: Volume of Distribution (Liters)
B26: Calc. Eliminaton Rate Constant (hr-1) Drug | C26: =IF($C15="Vancomycin",0.00107*$C24*(1.73/$C23)+0.005216005,IF(C4<=13,0.002279*C24+0.012257,IF(C4<=18,0.002393*C24+0.01287,0.0026*$C24+0.014))) ->  | D26: =C26 ->  | E26: =C22 -> 0
B27: Calculated Half-Life (Hours) for Drug | C27: =0.693/C26 ->  | D27: =0.693/D26 -> 
A28: Hide | B28: Loading Dose Aminoglycosides | C28: =IF(C24>=28.6,IF(C15="Amikacin",60*C$22*C$26*C$16/(1-EXP(-C$26*C$16)),20*C22*C26*C16/(1-EXP(-C26*C16))),IF(C15="Amikacin", 30*C22*C26*C16/(1-EXP(-C26*C16)),8*C22*C26*C16/(1-EXP(-C26*C16)))) -> 
A29: Hide | B29: Loading Dose Vancomycin | C29: =30*C$22*C$26*C$16/(1-EXP(-C$26*C$16)) ->  | E29: Hours to 15 mcg/ml from start LD | F29: =LN(30/15)/C26+2 ->  | G29: Hours to 20 mcg/ml | H29: =LN(30/20)/C26+C16 -> 
B30: Calculated Loading Dose Calculated (mg) | C30: =IF(LEN(D22)<>0,"",IF(C15="Vancomycin",C29,IF(C26<=LN(20/0.3)/47.5,C28,"Pulse Dosing"))) ->  | E30: =IFERROR(IF(C15="Vancomycin",IF(C30>3000,"Maximum Vancomycin Loading Dose is 3 grams",""),""),"") -> 
A31: Hide | B31: Aminoglycoside Interval Gentamicin | C31: =IF((((LN(20/0.3))/C26)+0.5)<24,24,IF((((LN(20/0.3))/C26)+0.5)<36,36,IF((((LN(20/0.3))/C26)+0.5)<48,48,((((LN(6/1))/C26))+0.5)))) ->  | D31: =IF((((LN(20/0.3))/D26)+0.5)<24,24,IF((((LN(20/0.3))/D26)+0.5)<36,36,IF((((LN(20/0.3))/D26)+0.5)<48,48,((((LN(6/1))/D26))+0.5)))) -> 
A32: Hide | B32: Aminoglycoside Interval Amikacin | C32: =IF((((LN(60/0.9))/C26)+0.5)<24,24,IF((((LN(60/0.9))/C26)+0.5)<36,36,IF((((LN(60/0.9))/C26)+0.5)<48,48,((((LN(30/3))/C26))+0.5)))) ->  | D32: =IF((((LN(60/0.9))/D26)+0.5)<24,24,IF((((LN(60/0.9))/D26)+0.5)<36,36,IF((((LN(60/0.9))/D26)+0.5)<48,48,((((LN(30/3))/D26))+0.5)))) -> 
B33: Calculated Dosage Interval (Hours) | C33: =IF(LEN(D22)<>0,"",IF($C15="Vancomycin",(((LN(30/15))/C26)+2),IF($C15="Amikacin",C32,C31))) ->  | D33: =IF($C15="Vancomycin",(((LN(40/15))/D26)+2),IF($C15="Amikacin",D32,D31)) -> 
B34: Input Rounded Dosage Interval (Hours) | D34: =C34 -> 0 | E34: =IF(C34<>"",IF(D26<>C26,IF(D36*24/D34>1.5*(C36*24/C34),"Total Daily Dose should not be increased by more than 50%.",""),""),"") ->  | G34: =IF(C34>168,"Verify dosage Interval entered","") -> 
B35: Calculated Maintenance Dose (mg) | C35: 0 | D35: 0 | G35: Maintenance Dose
B36: Input Rounded MaintenanceDose (mg) | D36: =C36 -> 0 | E36: =IF($C36<>"",IF($C15="Vancomycin",IF(C36/$C21>20,"The entered maintenance dose, C36, is too large: "&ROUND(C36/$C21,1)&" mg/kg",""),IF(AND($C15="Gentamicin/Tobramycin",C26>LN(20/0.3)/47.5),IF(ABS(1-(C36/($C21*5)))>=0.1,"The entered dose, C36, is >= 10% higher or lower than calculated maintenance dose. ",""),IF(AND($C15="Amikacin",C26>LN(20/0.3)/47.5),IF(ABS(1-(C36/($C21*15)))>=0.1,"The entered dose, C36, is >=10% higher or lower than calculated maintenance dose. ",""),""))),"") ->  | G36: Dose (mg/kg) | H36: =D36/C21 ->  | I36: =IF(ISERROR(H36),"",IF(H36>=18,"A lower dose, 10-17.5 mg/kg, is recommeneded","")) -> 
B37: Calculated Peak (mcg/ml) | C37: =IF(LEN(D22)<>0,"",C36*(1-EXP(-C26*$C16))/($C22*C26*$C16*(1-EXP(-C26*C34)))) ->  | D37: =D36*(1-EXP(-D26*$C16))/($E26*D26*$C16*(1-EXP(-D26*D34))) ->  | E37: =IF($C$36<>"",IF($C$15="Vancomycin",IF($D$36/$C$21>20,"The entered maintenance dose, D36, is too large: "&ROUND($D$36/$C$21,1)&" mg/kg",""),IF(AND($C$15="Gentamicin/Tobramycin",$D$26>LN(20/0.3)/47.5),IF(ABS(1-($D$36/($C$21*5)))>=0.1,"The entered dose, D36, is >= 10% higher or lower than calculated maintenance dose. ",""),IF(AND($C$15="Amikacin",$D$26>LN(20/0.3)/47.5),IF(ABS(1-($D$36/($C$21*15)))>=0.1,"The entered dose, D36, is >=10% higher or lower than calculated maintenance dose. ",""),""))),"") ->  | G37: Total Daily Dose | H37: =D36*24/D34 -> 
B38: Calculated Trough (mcg/ml) | C38: =IF(LEN(D22)<>0,"",C37*EXP(-C26*(C34-$C16))) ->  | D38: =D37*EXP(-D26*(D34-$C16)) -> 
B39: AUC (mg/hour/liter per day) | C39: =IF(LEN(D22)<>0,"",IF(C37<>C38,(C37+C38)*(C16/2)*24/C34+(C37-C38)*24/(C26*C34),C36*24/(C26*C22*C34))) ->  | D39: =(D37+D38)*C16/2*24/D34+(D37-D38)*24/(D26*D34) ->  | E39: =IF(ISERROR(C39),"",IF(C39>600,"AUC is too high","")) -> 
E40: Dose 1 after starting level | H40: Dose 2 after starting level | K40: Dose 3 after starting level | N40: Dose 4 after starting level | Q40: Dose 5 after starting level
D41: Dose (mg) | G41: Dose (mg) | J41: Dose (mg) | M41: Dose (mg) | P41: Dose (mg)
D42: Dose Date &Time | G42: Dose Date &Time | J42: Dose Date &Time | M42: Dose Date &Time | P42: Dose Date &Time
B43: Current Date | C43: 2019-08-10T07:27:20
B44: Date Therapy Initiated (Month/Day/Year)
C46: Starting Level Before Dose 1 | E46: Serum Levels (mcg/ml) | H46: Serum Levels (mcg/ml) | K46: Serum Levels (mcg/ml) | N46: Serum Levels (mcg/ml) | Q46: Serum Levels (mcg/ml)
C47: Starting Level Date &Time | E47: Serum Level Date &Time | H47: Serum Level Date &Time | K47: Serum Level Date &Time | N47: Serum Level Date &Time | Q47: Serum Level Date &Time
E49: Trough Before Dose 1 | H49: Trough Before Dose 2 | K49: Trough Before Dose 3 | N49: Trough Before Dose 4 | Q49: Trough Before Dose 5
D50: Expected Levels (mcg/ml) | E50: =D46*EXP(-$D26*(E42-$D47)*24) ->  | F50: =$D46*EXP(-$D26*(F47-$D47)*24)+($E41*(1-EXP(-$D26*$C16))*(EXP(-$D26*(((F47-$E42)*24)-$C16)))/($E26*$C16*$D26)) ->  | G50: =$D46*EXP(-$D26*(G47-$D47)*24)+($E41*(1-EXP(-$D26*$C16))*(EXP(-$D26*(((G47-$E42)*24)-$C16)))/($E26*$C16*$D26)) ->  | H50: =$D46*EXP(-$D26*(H42-$D47)*24)+($E41*(1-EXP(-$D26*$C16))*(EXP(-$D26*(((H42-$E42)*24)-$C16)))/($E26*$C16*$D26)) ->  | I50: =$H50*EXP(-$D26*(I47-$H42)*24) + ($H41*(EXP(-$D26*(((I47-$H42)*24)-$C16)))*(1-EXP(-$D26*$C16))/($E26*$D26*$C16)) ->  | J50: =$H50*EXP(-$D26*(J47-$H42)*24) + ($H41*(EXP(-$D26*(((J47-$H42)*24)-$C16)))*(1-EXP(-$D26*$C16))/($E26*$D26*$C16)) ->  | K50: =$H50*EXP(-$D26*(K42-$H42)*24) + ($H41*(EXP(-$D26*(((K42-$H42)*24)-$C16)))*(1-EXP(-$D26*$C16))/($E26*$D26*$C16)) ->  | L50: =$K50*EXP(-$D26*(L47-$K42)*24) + ($K41*(EXP(-$D26*(((L47-$K42)*24)-$C16)))*(1-EXP(-$D26*$C16))/($E26*$D26*$C16)) ->  | M50: =$K50*EXP(-$D26*(M47-$K42)*24) + ($K41*(EXP(-$D26*(((M47-$K42)*24)-$C16)))*(1-EXP(-$D26*$C16))/($E26*$D26*$C16)) ->  | N50: =$K50*EXP(-$D26*(N42-$K42)*24) + ($K41*(EXP(-$D26*(((N42-$K42)*24)-$C16)))*(1-EXP(-$D26*$C16))/($E26*$D26*$C16)) ->  | O50: =$N50*EXP(-$D26*(O47-$N42)*24) + ($N41*(EXP(-$D26*(((O47-$N42)*24)-$C16)))*(1-EXP(-$D26*$C16))/($E26*$D26*$C16)) ->  | P50: =$N50*EXP(-$D26*(P47-$N42)*24) + ($N41*(EXP(-$D26*(((P47-$N42)*24)-$C16)))*(1-EXP(-$D26*$C16))/($E26*$D26*$C16)) ->  | Q50: =$N50*EXP(-$D26*(Q42-$N42)*24) + ($N41*(EXP(-$D26*(((Q42-$N42)*24)-$C16)))*(1-EXP(-$D26*$C16))/($E26*$D26*$C16)) ->  | R50: =$Q50*EXP(-$D26*(R47-$Q42)*24) + ($Q41*(EXP(-$D26*(((R47-$Q42)*24)-$C16)))*(1-EXP(-$D26*$C16))/($E26*$D26*$C16)) ->  | S50: =$Q50*EXP(-$D26*(S47-$Q42)*24) + ($Q41*(EXP(-$D26*(((S47-$Q42)*24)-$C16)))*(1-EXP(-$D26*$C16))/($E26*$D26*$C16)) -> 
E52: Square of Errors | F52: =IF(ISNUMBER(F50),(F50-F46)^2,"") ->  | G52: =IF(ISNUMBER(G50),(G50-G46)^2,"") ->  | I52: =IF(ISNUMBER(I50),(I50-I46)^2,"") ->  | J52: =IF(ISNUMBER(J50),(J50-J46)^2,"") ->  | L52: =IF(ISNUMBER(L50),(L50-L46)^2,"") ->  | M52: =IF(ISNUMBER(M50),(M50-M46)^2,"") ->  | O52: =IF(ISNUMBER(O50),(O50-O46)^2,"") ->  | P52: =IF(ISNUMBER(P50),(P50-P46)^2,"") ->  | R52: =IF(ISNUMBER(R50),(R50-R46)^2,"") ->  | S52: =IF(ISNUMBER(S50),(S50-S46)^2,"") -> 
E53: Sum of Square of Errors | F53: =SUM(F52:S52) -> 0
B55: Marshall Pierce PharmD
B56: No Warranties Are Expressed or Implied.
B59: Instructions For Use
B60: 1. Enter the data required in the blue colored cells in column C, (C1-C16).
B61: 2. Select the patients treatment condition in cell E5.
B62: 3. Select the values in cells E8 through G8, E11 through F11, and E14 if the patient has amputation(s), paralysis, or malnutrition.
B63: 4. Press the "Calculate Creatinine Clearnance or Dose" button. This will calculate the patient's creatinine clearance and suggested dose and frequency.
B64: 5. Enter a rounded dosage interval and rounded dose in cells C34 and C36 respectively.
B65: 6. Population based parameters (elimination rate constant and volume of distribution) are used to calculate the peak and trough in C37 and C38 respectively.
B66: 7. Change the values in C34 and C36 to obtain your desired predicted peak and trough in cells C37 and C38.
B68: Population Based Equations Using Standard One Compartment Pharmacokinetic Equations
B69: Vancomycin
B70: Volume of Distribution (liters) = 0.65 l/kg of total body weight
B71: Elimination Rate Constant (1/hours) = 0.00107 * Creatinine ClearanceIBW * 1.73/BSA + 0.0052
B72: Aminoglycosides
B73: Volume of Distribution (liters) = 0.25 l/kg of adjusted body weight
B74: Elimination Rate Constant (1/hours) = 0.026 * Creatinine ClearanceIBW + 0.014
B75: Ideal body weight (IBW(kg)) Adults
B76: Males(kg) = 50(kg) + 2.3(kg) * (height in inches - 60)
B77: Females(kg) = 45.5(kg) + 2.3(kg) * (height in inches - 60)
B78: Lean Body Weight for Children or height < 48 inches (Peck Formula)
B79: Female < 18 years = -77.55796 + (6.93728 * height in inches) -(0.171703 * Height2) + (0.001726* Height3)
B80: Male < 18 years = -59.6035 + (5.2878 * Height) - (0.123939 * Height2) + 0.00128936 * Height3)
B81: If height < 22 inches, lean weight = total weight
B82: Adjusted body weight, aminoglycosides only, if actual weight > IBW.
B83: Adjusted Body Weight(kg) = LBW(kg) + 0.4 * (Actual Weight(kg) – IBW(kg))
B84: Creatinine Clearance Equations
B85: Adults Cockcroft Gault Equation
B86: Males(ml/min) = (140-age) * ( Use Ideal Body Weight(kg) or actual weight if less than IBW(kg)) / (Serum Creatinine *72)
B87: Females(ml/mn): above x 0.85
B88: Pediatic Schartz Equation
B89: ClCr(ml/min/1.73 m2) = Factor* HeightCentimeters / Serum Creatinine
B90: Factor: 0.45 < 1 year, 0.55 1-12 years, > 12 years 0.55 female, > 12 years males 0.7
B91: Amputation and Paralysis Serum Creatiine Multiplication Factors
B92: Entire Leg Amputation (1.2269), AKA (1.1764), BKA (1.0638), Entire Arm Amputation (1.0695), AEA (1.0526), BEA (1.0309), Functional Palegia (1.4), Paraplegia (1.4), Quadraplegia(1.6)
B93: Minimal Serum Creatinine: 0.5 mg/dL in patients with functional, para or quadraplegia, or malnutrition; 0.7 in other adults.
B94: Data Fitting: The program employees non steady state one compartment equations and uses the method of superposition to determine the expected level(s) from the input dosing history,
B95: starting serum level, and and estimated pharmacokinetic parameters.
B96: CpT = Cp0e(-K(T-to)) + [D1(1-e(-KT’))*e(-K(T-Td1-T’))/(VKT’)] + [D2(1-e(-KT’))*e(-K(T-Td2-T’))/(VKT’)]…….
B97: The expected levels, displayed in the data fitting section, are calculated using the population elimination rate constant (C26) and volume of distribtution (C22) initially.
B98: Once the data (dosing and serum levels) is fit the patient specific values of elimination rate constant and volume of distribution, D26 and E26, are used.
B100: Objective Function to Minimize
B101: Sum of the Square of Errors = (Predicted Level1 – Actual Level1)2 + (Predicted Level2 – Actual Level2)2 for all input levels
B103: Analyzing steady state levels using a trough drawn after a know steady state dose (this is our usual practice)
B104: 8. Steps 1-7 must be completed, enter the current frequency and dose in C34 and C36.
B105: 9. Enter the date therapy was started in cell C44.
B106: 10. Enter the steady state trough in cell G46 and the date and time of the trough in G47.
B107: 11. Enter the date and time of the dose which was given before the trough in E42.
B108: 12. Press the "Assume Steady State: Trough drawn after dose 1". This will copy the entered trough to cell D46, place the calculated time of the predose trough in cell D47, and the dose to E41.
B109: This is for your convience, if you choose to you can enter the data manually without pressing the "Assume Steady State" button.
B110: By placing the same trough around a single dose you are creating steady state conditions. This is the definition of steady state, levels are unchange dose to dose.
B111: 13. Press "Fit Data (Elimination Rate Constant Optimization)" button. The program will determine the elimination rate constant that miniminzes the difference between the actual and predicted level.
B112: 14. The calculated patient specific elimination rate constant is displayed in cell D26 after data fitting.
B113: 15. The predicted state state levels using the patient specific elimination rate constant are displayed in cells D37 and D38 respectively.
B114: 16. You may adjust the dosage frequency and dose in D34 and D36 to obtain your desired levels.
B116: Steady State Levels with the trough drawn post dose past the time the next dose was due as next dose was held, the dose was given late, or a random level was ordered.
B117: Trough at time of Dose1 displayed in E50 = Trough PredoseD46*Exp(-K*(Time of Dose1 E42- Time of Predose Trough D47)*24)
B118: The trough in D46 will show a time in D47 that is after the time of the dose1 in E42, but the equation above back extrapolates the calculated trough displayed in E50 to the time of Dose 1.
B119: The programs calculations are correct though the displayed values in D46 and D47 look incorrect. The value in E50 is the value used in the further calculations.
B121: Analyzing steady state levels using a trough drawn before a known steady state dose. This will be rarely use, but is included for flexible.
B122: 8. Steps 1-7 must be completed, enter the current frequency and dose in C34 and C36.
B123: 9. Enter the date therapy was started in cell C44.
B124: 10. Enter the steady state trough in cell D46 and the date and time of the trough in D47.
B125: 11. Enter the date and time of the dose which was given in E42.
B126: 12. Press the "Assume Steady State: Trough drawn before dose 1". This will copy the entered trough to cell G46, place the calculated time of the post dose trough in cell G47, and the dose to E41.
B127: This is for your convience, if you choose to you can enter the data manually without pressing the "Assume Steady State" button.
B128: By placing the same trough around a single dose you are creating steady state conditions. This is the definition of steady state, levels are unchanging dose to dose.
B129: 13. Press "Fit Data (Elimination Rate Constant Optimization)" button. The program will determine the elimination rate constant that miniminzes the difference between the actual and predicted level.
B130: 14.The calculated patient specific elimination rate constant is displayed in cell D26 after data fitting.
B131: 15. The predicted state state levels using the patient specific elimination rate constant are displayed in cells D37 and D38 respectively.
B132: 16. You may adjust the dosage frequency and dose in D34 and D36 to obtain your desired levels.
B134: Analyzing steady state levels using a trough drawn before a known steady state dose and a peak after the same dose (Traditional Dosing for Aminoglycosides)
B135: 8. Steps 1-7 must be completed, enter the current frequency and dose in C34 and C36.
B136: 9. Enter the date therapy was started in cell C44.
B137: 10. Enter the steady state trough in cell D46 and the date and time of the trough in D47.
B138: 11. Enter the steady state peak in cell F46 and time of the peak in F47.
B139: 12. Enter the date and time of the dose which was given in E42.
B140: 13. Press the "Assume Steady State: Trough drawn before dose 1". This will copy the entered trough to cell G46, place the calculated time of the post dose trough in cell G47, and the dose to E41.
B141: This is for your convience, if you choose to you can enter the data manually without pressing the "Assume Steady State" button.
B142: By placing the same trough around a single dose you are creating steady state conditions. This is the definition of steady state.
B143: 14. Press "Fit Data (Elimination Rate Constant & Vd Optimization)" button. The program will determine the elimination rate constant and volume of distribution that miniminzes the difference
B144: between the actual and predicted levels.
B145: 15. The calculated patient specific elimination rate constant is displayed in cell D26 and volume of distribution in cell E26 after data fitting.
B146: 16. The predicted state state levels using the patient specific K and Vd are displayed in cells D37 and D38 respectively.
B147: 17. You may adjust the dosage frequency and dose in D34 and D36 to obtain your desired levels.
B149: Analyzing Non Steady State Levels
B150: 8. Steps 1-7 must be completed, enter the current frequency and dose in C34 and C36.
B151: 9. Enter the date therapy was started in cell C44.
B152: 10. Enter a starting level and time of the level in cells D46 and D47 respectively. This level may be 0 if no drug is on board or any known level before the doses you wish to analyze.
B153: 11. Enter all doses and the dates and times given from the time of the starting level through the last dose administered before the last level to be analyzed in chronological order,
B154: oldest to most recent left to right. The doses are numbered 1-5, chronological after the starting level.
B155: 12. Enter all levels and the times drawn to be analyzed in chronlogical order, oldest to most recent left to right.
B156: 13. Press the appropriate data fitting button, "Fit Data (Elimination Rate Constant Optimization)" if only troughs have been drawn, and
B157: "Fit Data (Elimination Rate Constant & Vd Optimization) if a peak(s) and trough(s) have been drawn.
B158: 14. The calculated patient specific elimination rate constant is displayed in cell D26 and volume of distribution in cell E26 after data fitting.
B159: 15. The predicted state state levels using the patient specific K and Vd are displayed in cells D37 and D38 respectively.
B160: 16. You may adjust the dosage frequency and dose in D34 and D36 to obtain your desired levels.
B163: When to assume levels are Non Steady State Levels
B164: 1. If you are ordering levels before 5 half lives of have passed from the start of therapy.
B165: 2. If you order levels after the 1st maintenance dose with or with out a loading dose.
B166: 3. The patients doses or dosage intervals are not consistent.
B168: Note: the predicted levels for input dosage regimens in column C (population) and D (patient specific) are independent from one another after data fitting.
B170: Creatinine Clearance Calculation
B171: How is creatinine clearance calculated when the serum creatinines is changing?
B172: Most creatinine clearance equations assume stable renal function.
B173: Creatinine clearance individualized (Clcr) Cockcroft Gault equation:
B174: Males(ml/min) = (140-age) * ( Use Ideal Body Weight(kg) or actual weight if less than IBW(kg)) / (Serum Creatinine *72)
B175: Females(ml/mn): above x 0.85
B176: In the simplified form: Creatinine Clearance = Creatinine rate of production / Serum Creatinine
B177: Rate of production is constant for a patient and is determined by age, height, weight and sex. The rate of production is built
B178: into the Cockcroft Gault equation and other creatinine clearanace equations. When renal function has changed the following equation may be used to
B179: calculate creatinine clearance before steady state serum creatinine levels are achieved. This is the most accurate method of
B180: numerous published equations. An iterative method is used to determine clearnace as there is no direct solution to the equation.
B181: Serum Creatinine2 = Serum Creatinine1 * e(-KT) + Rate of Production (1-e(-KT)) / Clearance of Creatinine
B182: T is the time between serum two known creatinines (creatinine1 and creatinine2).
B183: K is the elimination rate constant for creatinine.
B184: This equation accounts for the elimination of creatinine already present and the fraction of steady state achieved during the
B185: time between the creatinines.
B186: Assumptions of the non steady state equation:
B187: All of the change in renal function has occurred at or before the time of the oldest creatinine (creatinine1).
B188: The change in creatinines is due to renal function changes and is not due to tissue destruction or hydration changes.
B189: The serum creatinines are accurately determined and the time between them is known.
B191: Data Storage
B192: The program stores patient demographic information, current dose and frequency, along with calculated values including population and
B193: patient specfic elimination rate constant and volume of distribution in a separate file. The file is password protected and the data is hidden.
B194: This allows analysis of predicted versus actual levels to optimize the parameters used in the program.
B196: Program Requirements
B197: Excel 2010
B198: A shared drive with a copies of the program in separate folders if multiple users will be dosing patients at the same time or the program will have to be installed on multiple computers.
B199: A copy of the program should be placed in individual folders on the shared drive for each functional area of use along with the patient data file.
B201: References
B202: 1. Chiou WL, Hsu FH. A new simple and rapid method to monitor the renal function based on pharmacokinetic consideration of endogeneous creatinine. Res Commun Chem Pathol Pharmacol. 1975 Feb;10(2):315-30. PubMed PMID: 1153839.
B203: 2. Cockcroft DW, Gault MH. Prediction of creatinine clearance from serum creatinine. Nephron. 1976;16(1):31-41. PubMed PMID: 1244564.
B204: 3. Devine BJ. Gentamicin therapy. Drug Intell Clin Pharm. 1974;8:650–655.
B205: 4. Lau AH, Berk SI, Prosser T, Stonich T. Estimation of creatinine clearance in malnourished patients. Clin Pharm. 1988 Jan;7(1):62-5. PubMed PMID: 3126017.
B206: 5. Gilbaldi M, Perrier D Pharmacokinetics Marcel Kekker, Inc New York 1975
B207: 6. Winter, Michael E. Basic Clinical Pharmacokintics 2nd Edition Applied Therapeutics Inc 1988
B208: 7. Murphy John E, Clinical Pharmacokinetics Third Edition American Society of Health Systems Pharmacists, Inc 2005
B209: 8. Schwartz GJ, Haycock GB, Edelmann CM, et al. A simple estimate of glomerular filtration rate in children derived from body length and plasma creatinine. Pediatrics. 1976;58:259-63
B210: 9. Schwartz GJ, Feld LG, Langford DJ. A simple estimate of glomerular fultration rate in full-term infants during the first year of life. Pediatrics 1984;104:849-54
B211: 10. Chow MS, Schweizer R. Estimation of renal creatinine clearance in patients with unstable serum creatinine concentrations: comparison of multiple methods. Drug Intell Clin Pharm. 1985 May;19(5):385-90. PubMed PMID: 4006730.
B212: 11. Lener, Peck, Brown, Perlin. One compartment forecaster reference materials. Technical Report Number 10. Division of Clinical Pharmacology Uniformed Service university of Health Science Bethesda, Maryland
B213: 12. University of Virginia Health System Adult Enteral and Parenteral Nutrition Handbook
